{"text_format":"1","workbook":"xlsx","n_sheets":5,"sheets":["START HERE","Table A","Table B","Table C","DropdownLists"],"not_rendered":{"charts":0,"images":0,"macros":1,"external_links":0,"defined_names":3,"comments":0,"pivot_tables":0},"unopened":[],"bounds":{"document_bytes":16777216,"sheet_cells":100000,"rows_first":2000,"rows_last":500,"rows_between":2000,"halvings":0,"cell_chars":16384,"cell_head_chars":4096},"cells_cut":0,"cells_raw":0,"read":"whole","date_system":"1900"}

{"sheet":"START HERE","index":0,"n_rows":15,"n_cols":2,"rows_kept":15,"cut":false,"hidden":false,"merged":[]}
["Please Start Here, Instructions in Cell A2, Table in A3:B15","Form Fields"]
["Site Inventory Forms must be submitted to HCD for a housing element or amendment adopted on or after January 1, 2021. The following form is to be used for satisfying this requirement. To submit the form, complete the Excel spreadsheet and submit to HCD at sitesinventory@hcd.ca.gov. Please send the Excel workbook, not a scanned or PDF copy of the tables."]
["General Information "]
["Jurisidiction Name"]
["Housing Element Cycle"]
["Contact Information"]
["First Name"]
["Last Name"]
["Title"]
["Email"]
["Phone"]
["Mailing Address"]
["Street Address"]
["City"]
["Zip Code"]

{"sheet":"Table A","index":1,"n_rows":502,"n_cols":22,"rows_kept":502,"cut":false,"hidden":false,"merged":[]}
["Table A: Housing Element Sites Inventory, Table Starts in Cell A2"]
["Jurisdiction Name","Site Address/Intersection","5 Digit ZIP Code","Assessor Parcel Number","Consolidated Sites","General Plan Designation (Current)","Zoning Designation (Current)","Minimum Density Allowed (units/acre)","Max Density Allowed (units/acre)","Parcel Size (Acres)","Existing Use/Vacancy","Infrastructure","Publicly-Owned","Site Status","Identified in Last/Last Two Planning Cycle(s)","Lower Income Capacity","Moderate Income Capacity","Above Moderate Income Capacity","Total Capacity","Optional Information1","Optional Information2","Optional Information3"]
[{"$f":"IF('START HERE'!$B$4=0,\"\",'START HERE'!$B$4)","v":""},null,null,"",null,null,null,null,null,null,null,null,null,null,null,null,null,null,{"$f":"IF((R3+Q3+P3)=0,\"\",(R3+Q3+P3))","v":""}]
[{"$f":"IF('START HERE'!$B$4=0,\"\",'START HERE'!$B$4)","v":""},null,null,null,null,null,null,null,null,null,null,null,null,null,null,null,null,null,{"$f":"IF((R4+Q4+P4)=0,\"\",(R4+Q4+P4))","v":""}]
[{"$f":"IF('START HERE'!$B$4=0,\"\",'START HERE'!$B$4)","v":""},null,null,null,null,null,null,null,null,null,null,null,null,null,null,null,null,null,""]
[{"$f":"IF('START HERE'!$B$4=0,\"\",'START HERE'!$B$4)","v":""},null,null,null,null,null,null,null,null,null,null,null,null,null,null,null,null,null,""]
[{"$f":"IF('START HERE'!$B$4=0,\"\",'START HERE'!$B$4)","v":""},null,null,null,null,null,null,null,null,null,null,null,null,null,null,null,null,null,""]
[{"$f":"IF('START HERE'!$B$4=0,\"\",'START HERE'!$B$4)","v":""},null,null,null,null,null,null,null,null,null,null,null,null,null,null,null,null,null,""]
[{"$f":"IF('START HERE'!$B$4=0,\"\",'START HERE'!$B$4)","v":""},null,null,null,null,null,null,null,null,null,null,null,null,null,null,null,null,null,""]
[{"$f":"IF('START HERE'!$B$4=0,\"\",'START HERE'!$B$4)","v":""},null,null,null,null,null,null,null,null,null,null,null,null,null,null,null,null,null,""]
[{"$f":"IF('START HERE'!$B$4=0,\"\",'START HERE'!$B$4)","v":""},null,null,null,null,null,null,null,null,null,null,null,null,null,null,null,null,null,""]
[{"$f":"IF('START HERE'!$B$4=0,\"\",'START HERE'!$B$4)","v":""},null,null,null,null,null,null,null,null,null,null,null,null,null,null,null,null,null,""]
[{"$f":"IF('START HERE'!$B$4=0,\"\",'START HERE'!$B$4)","v":""},null,null,null,null,null,null,null,null,null,null,null,null,null,null,null,null,null,""]
[{"$f":"IF('START HERE'!$B$4=0,\"\",'START HERE'!$B$4)","v":""},null,null,null,null,null,null,null,null,null,null,null,null,null,null,null,null,null,""]
[{"$f":"IF('START HERE'!$B$4=0,\"\",'START HERE'!$B$4)","v":""},null,null,null,null,null,null,null,null,null,null,null,null,null,null,null,null,null,""]
[{"$f":"IF('START HERE'!$B$4=0,\"\",'START HERE'!$B$4)","v":""},null,null,null,null,null,null,null,null,null,null,null,null,null,null,null,null,null,""]
[{"$f":"IF('START HERE'!$B$4=0,\"\",'START HERE'!$B$4)","v":""},null,null,null,null,null,null,null,null,null,null,null,null,null,null,null,null,null,""]
[{"$f":"IF('START HERE'!$B$4=0,\"\",'START HERE'!$B$4)","v":""},null,null,null,null,null,null,null,null,null,null,null,null,null,null,null,null,null,""]
[{"$f":"IF('START HERE'!$B$4=0,\"\",'START HERE'!$B$4)","v":""},null,null,null,null,null,null,null,null,null,null,null,null,null,null,null,null,null,""]
[{"$f":"IF('START HERE'!$B$4=0,\"\",'START HERE'!$B$4)","v":""},null,null,null,null,null,null,null,null,null,null,null,null,null,null,null,null,null,""]
[{"$f":"IF('START HERE'!$B$4=0,\"\",'START HERE'!$B$4)","v":""},null,null,null,null,null,null,null,null,null,null,null,null,null,null,null,null,null,""]
[{"$f":"IF('START HERE'!$B$4=0,\"\",'START HERE'!$B$4)","v":""},null,null,null,null,null,null,null,null,null,null,null,null,null,null,null,null,null,""]
[{"$f":"IF('START HERE'!$B$4=0,\"\",'START HERE'!$B$4)","v":""},null,null,null,null,null,null,null,null,null,null,null,null,null,null,null,null,null,""]
[{"$f":"IF('START HERE'!$B$4=0,\"\",'START HERE'!$B$4)","v":""},null,null,null,null,null,null,null,null,null,null,null,null,null,null,null,null,null,""]
[{"$f":"IF('START HERE'!$B$4=0,\"\",'START HERE'!$B$4)","v":""},null,null,null,null,null,null,null,null,null,null,null,null,null,null,null,null,null,""]
[{"$f":"IF('START HERE'!$B$4=0,\"\",'START HERE'!$B$4)","v":""},null,null,null,null,null,null,null,null,null,null,null,null,null,null,null,null,null,""]
[{"$f":"IF('START HERE'!$B$4=0,\"\",'START HERE'!$B$4)","v":""},null,null,null,null,null,null,null,null,null,null,null,null,null,null,null,null,null,""]
[{"$f":"IF('START HERE'!$B$4=0,\"\",'START HERE'!$B$4)","v":""},null,null,null,null,null,null,null,null,null,null,null,null,null,null,null,null,null,""]
[{"$f":"IF('START HERE'!$B$4=0,\"\",'START HERE'!$B$4)","v":""},null,null,null,null,null,null,null,null,null,null,null,null,null,null,null,null,null,""]
[{"$f":"IF('START HERE'!$B$4=0,\"\",'START HERE'!$B$4)","v":""},null,null,null,null,null,null,null,null,null,null,null,null,null,null,null,null,null,""]
[{"$f":"IF('START HERE'!$B$4=0,\"\",'START HERE'!$B$4)","v":""},null,null,null,null,null,null,null,null,null,null,null,null,null,null,null,null,null,""]
[{"$f":"IF('START HERE'!$B$4=0,\"\",'START HERE'!$B$4)","v":""},null,null,null,null,null,null,null,null,null,null,null,null,null,null,null,null,null,""]
[{"$f":"IF('START HERE'!$B$4=0,\"\",'START HERE'!$B$4)","v":""},null,null,null,null,null,null,null,null,null,null,null,null,null,null,null,null,null,""]
[{"$f":"IF('START HERE'!$B$4=0,\"\",'START HERE'!$B$4)","v":""},null,null,null,null,null,null,null,null,null,null,null,null,null,null,null,null,null,""]
[{"$f":"IF('START HERE'!$B$4=0,\"\",'START HERE'!$B$4)","v":""},null,null,null,null,null,null,null,null,null,null,null,null,null,null,null,null,null,""]
[{"$f":"IF('START HERE'!$B$4=0,\"\",'START HERE'!$B$4)","v":""},null,null,null,null,null,null,null,null,null,null,null,null,null,null,null,null,null,""]
[{"$f":"IF('START HERE'!$B$4=0,\"\",'START HERE'!$B$4)","v":""},null,null,null,null,null,null,null,null,null,null,null,null,null,null,null,null,null,""]
[{"$f":"IF('START HERE'!$B$4=0,\"\",'START HERE'!$B$4)","v":""},null,null,null,null,null,null,null,null,null,null,null,null,null,null,null,null,null,""]
[{"$f":"IF('START HERE'!$B$4=0,\"\",'START HERE'!$B$4)","v":""},null,null,null,null,null,null,null,null,null,null,null,null,null,null,null,null,null,""]
[{"$f":"IF('START HERE'!$B$4=0,\"\",'START HERE'!$B$4)","v":""},null,null,null,null,null,null,null,null,null,null,null,null,null,null,null,null,null,""]
[{"$f":"IF('START HERE'!$B$4=0,\"\",'START HERE'!$B$4)","v":""},null,null,null,null,null,null,null,null,null,null,null,null,null,null,null,null,null,""]
[{"$f":"IF('START HERE'!$B$4=0,\"\",'START HERE'!$B$4)","v":""},null,null,null,null,null,null,null,null,null,null,null,null,null,null,null,null,null,""]
[{"$f":"IF('START HERE'!$B$4=0,\"\",'START HERE'!$B$4)","v":""},null,null,null,null,null,null,null,null,null,null,null,null,null,null,null,null,null,""]
[{"$f":"IF('START HERE'!$B$4=0,\"\",'START HERE'!$B$4)","v":""},null,null,null,null,null,null,null,null,null,null,null,null,null,null,null,null,null,""]
[{"$f":"IF('START HERE'!$B$4=0,\"\",'START HERE'!$B$4)","v":""},null,null,null,null,null,null,null,null,null,null,null,null,null,null,null,null,null,""]
[{"$f":"IF('START HERE'!$B$4=0,\"\",'START HERE'!$B$4)","v":""},null,null,null,null,null,null,null,null,null,null,null,null,null,null,null,null,null,""]
[{"$f":"IF('START HERE'!$B$4=0,\"\",'START HERE'!$B$4)","v":""},null,null,null,null,null,null,null,null,null,null,null,null,null,null,null,null,null,""]
[{"$f":"IF('START HERE'!$B$4=0,\"\",'START HERE'!$B$4)","v":""},null,null,null,null,null,null,null,null,null,null,null,null,null,null,null,null,null,""]
[{"$f":"IF('START HERE'!$B$4=0,\"\",'START HERE'!$B$4)","v":""},null,null,null,null,null,null,null,null,null,null,null,null,null,null,null,null,null,""]
[{"$f":"IF('START HERE'!$B$4=0,\"\",'START HERE'!$B$4)","v":""},null,null,null,null,null,null,null,null,null,null,null,null,null,null,null,null,null,""]
[{"$f":"IF('START HERE'!$B$4=0,\"\",'START HERE'!$B$4)","v":""},null,null,null,null,null,null,null,null,null,null,null,null,null,null,null,null,null,""]
[{"$f":"IF('START HERE'!$B$4=0,\"\",'START HERE'!$B$4)","v":""},null,null,null,null,null,null,null,null,null,null,null,null,null,null,null,null,null,""]
[{"$f":"IF('START HERE'!$B$4=0,\"\",'START HERE'!$B$4)","v":""},null,null,null,null,null,null,null,null,null,null,null,null,null,null,null,null,null,""]
[{"$f":"IF('START HERE'!$B$4=0,\"\",'START HERE'!$B$4)","v":""},null,null,null,null,null,null,null,null,null,null,null,null,null,null,null,null,null,""]
[{"$f":"IF('START HERE'!$B$4=0,\"\",'START HERE'!$B$4)","v":""},null,null,null,null,null,null,null,null,null,null,null,null,null,null,null,null,null,""]
[{"$f":"IF('START HERE'!$B$4=0,\"\",'START HERE'!$B$4)","v":""},null,null,null,null,null,null,null,null,null,null,null,null,null,null,null,null,null,""]
[{"$f":"IF('START HERE'!$B$4=0,\"\",'START HERE'!$B$4)","v":""},null,null,null,null,null,null,null,null,null,null,null,null,null,null,null,null,null,""]
[{"$f":"IF('START HERE'!$B$4=0,\"\",'START HERE'!$B$4)","v":""},null,null,null,null,null,null,null,null,null,null,null,null,null,null,null,null,null,""]
[{"$f":"IF('START HERE'!$B$4=0,\"\",'START HERE'!$B$4)","v":""},null,null,null,null,null,null,null,null,null,null,null,null,null,null,null,null,null,""]
[{"$f":"IF('START HERE'!$B$4=0,\"\",'START HERE'!$B$4)","v":""},null,null,null,null,null,null,null,null,null,null,null,null,null,null,null,null,null,""]
[{"$f":"IF('START HERE'!$B$4=0,\"\",'START HERE'!$B$4)","v":""},null,null,null,null,null,null,null,null,null,null,null,null,null,null,null,null,null,""]
[{"$f":"IF('START HERE'!$B$4=0,\"\",'START HERE'!$B$4)","v":""},null,null,null,null,null,null,null,null,null,null,null,null,null,null,null,null,null,""]
[{"$f":"IF('START HERE'!$B$4=0,\"\",'START HERE'!$B$4)","v":""},null,null,null,null,null,null,null,null,null,null,null,null,null,null,null,null,null,""]
[{"$f":"IF('START HERE'!$B$4=0,\"\",'START HERE'!$B$4)","v":""},null,null,null,null,null,null,null,null,null,null,null,null,null,null,null,null,null,""]
[{"$f":"IF('START HERE'!$B$4=0,\"\",'START HERE'!$B$4)","v":""},null,null,null,null,null,null,null,null,null,null,null,null,null,null,null,null,null,""]
[{"$f":"IF('START HERE'!$B$4=0,\"\",'START HERE'!$B$4)","v":""},null,null,null,null,null,null,null,null,null,null,null,null,null,null,null,null,null,""]
[{"$f":"IF('START HERE'!$B$4=0,\"\",'START HERE'!$B$4)","v":""},null,null,null,null,null,null,null,null,null,null,null,null,null,null,null,null,null,""]
[{"$f":"IF('START HERE'!$B$4=0,\"\",'START HERE'!$B$4)","v":""},null,null,null,null,null,null,null,null,null,null,null,null,null,null,null,null,null,{"$f":"IF((R68+Q68+P68)=0,\"\",(R68+Q68+P68))","v":""}]
[{"$f":"IF('START HERE'!$B$4=0,\"\",'START HERE'!$B$4)","v":""},null,null,null,null,null,null,null,null,null,null,null,null,null,null,null,null,null,""]
[{"$f":"IF('START HERE'!$B$4=0,\"\",'START HERE'!$B$4)","v":""},null,null,null,null,null,null,null,null,null,null,null,null,null,null,null,null,null,""]
[{"$f":"IF('START HERE'!$B$4=0,\"\",'START HERE'!$B$4)","v":""},null,null,null,null,null,null,null,null,null,null,null,null,null,null,null,null,null,""]
[{"$f":"IF('START HERE'!$B$4=0,\"\",'START HERE'!$B$4)","v":""},null,null,null,null,null,null,null,null,null,null,null,null,null,null,null,null,null,""]
[{"$f":"IF('START HERE'!$B$4=0,\"\",'START HERE'!$B$4)","v":""},null,null,null,null,null,null,null,null,null,null,null,null,null,null,null,null,null,""]
[{"$f":"IF('START HERE'!$B$4=0,\"\",'START HERE'!$B$4)","v":""},null,null,null,null,null,null,null,null,null,null,null,null,null,null,null,null,null,""]
[{"$f":"IF('START HERE'!$B$4=0,\"\",'START HERE'!$B$4)","v":""},null,null,null,null,null,null,null,null,null,null,null,null,null,null,null,null,null,""]
[{"$f":"IF('START HERE'!$B$4=0,\"\",'START HERE'!$B$4)","v":""},null,null,null,null,null,null,null,null,null,null,null,null,null,null,null,null,null,""]
[{"$f":"IF('START HERE'!$B$4=0,\"\",'START HERE'!$B$4)","v":""},null,null,null,null,null,null,null,null,null,null,null,null,null,null,null,null,null,""]
[{"$f":"IF('START HERE'!$B$4=0,\"\",'START HERE'!$B$4)","v":""},null,null,null,null,null,null,null,null,null,null,null,null,null,null,null,null,null,""]
[{"$f":"IF('START HERE'!$B$4=0,\"\",'START HERE'!$B$4)","v":""},null,null,null,null,null,null,null,null,null,null,null,null,null,null,null,null,null,""]
[{"$f":"IF('START HERE'!$B$4=0,\"\",'START HERE'!$B$4)","v":""},null,null,null,null,null,null,null,null,null,null,null,null,null,null,null,null,null,""]
[{"$f":"IF('START HERE'!$B$4=0,\"\",'START HERE'!$B$4)","v":""},null,null,null,null,null,null,null,null,null,null,null,null,null,null,null,null,null,""]
[{"$f":"IF('START HERE'!$B$4=0,\"\",'START HERE'!$B$4)","v":""},null,null,null,null,null,null,null,null,null,null,null,null,null,null,null,null,null,""]
[{"$f":"IF('START HERE'!$B$4=0,\"\",'START HERE'!$B$4)","v":""},null,null,null,null,null,null,null,null,null,null,null,null,null,null,null,null,null,""]
[{"$f":"IF('START HERE'!$B$4=0,\"\",'START HERE'!$B$4)","v":""},null,null,null,null,null,null,null,null,null,null,null,null,null,null,null,null,null,""]
[{"$f":"IF('START HERE'!$B$4=0,\"\",'START HERE'!$B$4)","v":""},null,null,null,null,null,null,null,null,null,null,null,null,null,null,null,null,null,""]
[{"$f":"IF('START HERE'!$B$4=0,\"\",'START HERE'!$B$4)","v":""},null,null,null,null,null,null,null,null,null,null,null,null,null,null,null,null,null,""]
[{"$f":"IF('START HERE'!$B$4=0,\"\",'START HERE'!$B$4)","v":""},null,null,null,null,null,null,null,null,null,null,null,null,null,null,null,null,null,""]
[{"$f":"IF('START HERE'!$B$4=0,\"\",'START HERE'!$B$4)","v":""},null,null,null,null,null,null,null,null,null,null,null,null,null,null,null,null,null,""]
[{"$f":"IF('START HERE'!$B$4=0,\"\",'START HERE'!$B$4)","v":""},null,null,null,null,null,null,null,null,null,null,null,null,null,null,null,null,null,""]
[{"$f":"IF('START HERE'!$B$4=0,\"\",'START HERE'!$B$4)","v":""},null,null,null,null,null,null,null,null,null,null,null,null,null,null,null,null,null,""]
[{"$f":"IF('START HERE'!$B$4=0,\"\",'START HERE'!$B$4)","v":""},null,null,null,null,null,null,null,null,null,null,null,null,null,null,null,null,null,""]
[{"$f":"IF('START HERE'!$B$4=0,\"\",'START HERE'!$B$4)","v":""},null,null,null,null,null,null,null,null,null,null,null,null,null,null,null,null,null,""]
[{"$f":"IF('START HERE'!$B$4=0,\"\",'START HERE'!$B$4)","v":""},null,null,null,null,null,null,null,null,null,null,null,null,null,null,null,null,null,""]
[{"$f":"IF('START HERE'!$B$4=0,\"\",'START HERE'!$B$4)","v":""},null,null,null,null,null,null,null,null,null,null,null,null,null,null,null,null,null,""]
[{"$f":"IF('START HERE'!$B$4=0,\"\",'START HERE'!$B$4)","v":""},null,null,null,null,null,null,null,null,null,null,null,null,null,null,null,null,null,""]
[{"$f":"IF('START HERE'!$B$4=0,\"\",'START HERE'!$B$4)","v":""},null,null,null,null,null,null,null,null,null,null,null,null,null,null,null,null,null,""]
[{"$f":"IF('START HERE'!$B$4=0,\"\",'START HERE'!$B$4)","v":""},null,null,null,null,null,null,null,null,null,null,null,null,null,null,null,null,null,""]
[{"$f":"IF('START HERE'!$B$4=0,\"\",'START HERE'!$B$4)","v":""},null,null,null,null,null,null,null,null,null,null,null,null,null,null,null,null,null,""]
[{"$f":"IF('START HERE'!$B$4=0,\"\",'START HERE'!$B$4)","v":""},null,null,null,null,null,null,null,null,null,null,null,null,null,null,null,null,null,""]
[{"$f":"IF('START HERE'!$B$4=0,\"\",'START HERE'!$B$4)","v":""},null,null,null,null,null,null,null,null,null,null,null,null,null,null,null,null,null,""]
[{"$f":"IF('START HERE'!$B$4=0,\"\",'START HERE'!$B$4)","v":""},null,null,null,null,null,null,null,null,null,null,null,null,null,null,null,null,null,""]
[{"$f":"IF('START HERE'!$B$4=0,\"\",'START HERE'!$B$4)","v":""},null,null,null,null,null,null,null,null,null,null,null,null,null,null,null,null,null,""]
[{"$f":"IF('START HERE'!$B$4=0,\"\",'START HERE'!$B$4)","v":""},null,null,null,null,null,null,null,null,null,null,null,null,null,null,null,null,null,""]
[{"$f":"IF('START HERE'!$B$4=0,\"\",'START HERE'!$B$4)","v":""},null,null,null,null,null,null,null,null,null,null,null,null,null,null,null,null,null,""]
[{"$f":"IF('START HERE'!$B$4=0,\"\",'START HERE'!$B$4)","v":""},null,null,null,null,null,null,null,null,null,null,null,null,null,null,null,null,null,""]
[{"$f":"IF('START HERE'!$B$4=0,\"\",'START HERE'!$B$4)","v":""},null,null,null,null,null,null,null,null,null,null,null,null,null,null,null,null,null,""]
[{"$f":"IF('START HERE'!$B$4=0,\"\",'START HERE'!$B$4)","v":""},null,null,null,null,null,null,null,null,null,null,null,null,null,null,null,null,null,""]
[{"$f":"IF('START HERE'!$B$4=0,\"\",'START HERE'!$B$4)","v":""},null,null,null,null,null,null,null,null,null,null,null,null,null,null,null,null,null,""]
[{"$f":"IF('START HERE'!$B$4=0,\"\",'START HERE'!$B$4)","v":""},null,null,null,null,null,null,null,null,null,null,null,null,null,null,null,null,null,""]
[{"$f":"IF('START HERE'!$B$4=0,\"\",'START HERE'!$B$4)","v":""},null,null,null,null,null,null,null,null,null,null,null,null,null,null,null,null,null,""]
[{"$f":"IF('START HERE'!$B$4=0,\"\",'START HERE'!$B$4)","v":""},null,null,null,null,null,null,null,null,null,null,null,null,null,null,null,null,null,""]
[{"$f":"IF('START HERE'!$B$4=0,\"\",'START HERE'!$B$4)","v":""},null,null,null,null,null,null,null,null,null,null,null,null,null,null,null,null,null,""]
[{"$f":"IF('START HERE'!$B$4=0,\"\",'START HERE'!$B$4)","v":""},null,null,null,null,null,null,null,null,null,null,null,null,null,null,null,null,null,""]
[{"$f":"IF('START HERE'!$B$4=0,\"\",'START HERE'!$B$4)","v":""},null,null,null,null,null,null,null,null,null,null,null,null,null,null,null,null,null,""]
[{"$f":"IF('START HERE'!$B$4=0,\"\",'START HERE'!$B$4)","v":""},null,null,null,null,null,null,null,null,null,null,null,null,null,null,null,null,null,""]
[{"$f":"IF('START HERE'!$B$4=0,\"\",'START HERE'!$B$4)","v":""},null,null,null,null,null,null,null,null,null,null,null,null,null,null,null,null,null,""]
[{"$f":"IF('START HERE'!$B$4=0,\"\",'START HERE'!$B$4)","v":""},null,null,null,null,null,null,null,null,null,null,null,null,null,null,null,null,null,""]
[{"$f":"IF('START HERE'!$B$4=0,\"\",'START HERE'!$B$4)","v":""},null,null,null,null,null,null,null,null,null,null,null,null,null,null,null,null,null,""]
[{"$f":"IF('START HERE'!$B$4=0,\"\",'START HERE'!$B$4)","v":""},null,null,null,null,null,null,null,null,null,null,null,null,null,null,null,null,null,""]
[{"$f":"IF('START HERE'!$B$4=0,\"\",'START HERE'!$B$4)","v":""},null,null,null,null,null,null,null,null,null,null,null,null,null,null,null,null,null,""]
[{"$f":"IF('START HERE'!$B$4=0,\"\",'START HERE'!$B$4)","v":""},null,null,null,null,null,null,null,null,null,null,null,null,null,null,null,null,null,""]
[{"$f":"IF('START HERE'!$B$4=0,\"\",'START HERE'!$B$4)","v":""},null,null,null,null,null,null,null,null,null,null,null,null,null,null,null,null,null,""]
[{"$f":"IF('START HERE'!$B$4=0,\"\",'START HERE'!$B$4)","v":""},null,null,null,null,null,null,null,null,null,null,null,null,null,null,null,null,null,""]
[{"$f":"IF('START HERE'!$B$4=0,\"\",'START HERE'!$B$4)","v":""},null,null,null,null,null,null,null,null,null,null,null,null,null,null,null,null,null,""]
[{"$f":"IF('START HERE'!$B$4=0,\"\",'START HERE'!$B$4)","v":""},null,null,null,null,null,null,null,null,null,null,null,null,null,null,null,null,null,""]
[{"$f":"IF('START HERE'!$B$4=0,\"\",'START HERE'!$B$4)","v":""},null,null,null,null,null,null,null,null,null,null,null,null,null,null,null,null,null,""]
[{"$f":"IF('START HERE'!$B$4=0,\"\",'START HERE'!$B$4)","v":""},null,null,null,null,null,null,null,null,null,null,null,null,null,null,null,null,null,""]
[{"$f":"IF('START HERE'!$B$4=0,\"\",'START HERE'!$B$4)","v":""},null,null,null,null,null,null,null,null,null,null,null,null,null,null,null,null,null,""]
[{"$f":"IF('START HERE'!$B$4=0,\"\",'START HERE'!$B$4)","v":""},null,null,null,null,null,null,null,null,null,null,null,null,null,null,null,null,null,""]
[{"$f":"IF('START HERE'!$B$4=0,\"\",'START HERE'!$B$4)","v":""},null,null,null,null,null,null,null,null,null,null,null,null,null,null,null,null,null,""]
[{"$f":"IF('START HERE'!$B$4=0,\"\",'START HERE'!$B$4)","v":""},null,null,null,null,null,null,null,null,null,null,null,null,null,null,null,null,null,""]
[{"$f":"IF('START HERE'!$B$4=0,\"\",'START HERE'!$B$4)","v":""},null,null,null,null,null,null,null,null,null,null,null,null,null,null,null,null,null,{"$f":"IF((R132+Q132+P132)=0,\"\",(R132+Q132+P132))","v":""}]
[{"$f":"IF('START HERE'!$B$4=0,\"\",'START HERE'!$B$4)","v":""},null,null,null,null,null,null,null,null,null,null,null,null,null,null,null,null,null,""]
[{"$f":"IF('START HERE'!$B$4=0,\"\",'START HERE'!$B$4)","v":""},null,null,null,null,null,null,null,null,null,null,null,null,null,null,null,null,null,""]
[{"$f":"IF('START HERE'!$B$4=0,\"\",'START HERE'!$B$4)","v":""},null,null,null,null,null,null,null,null,null,null,null,null,null,null,null,null,null,""]
[{"$f":"IF('START HERE'!$B$4=0,\"\",'START HERE'!$B$4)","v":""},null,null,null,null,null,null,null,null,null,null,null,null,null,null,null,null,null,""]
[{"$f":"IF('START HERE'!$B$4=0,\"\",'START HERE'!$B$4)","v":""},null,null,null,null,null,null,null,null,null,null,null,null,null,null,null,null,null,""]
[{"$f":"IF('START HERE'!$B$4=0,\"\",'START HERE'!$B$4)","v":""},null,null,null,null,null,null,null,null,null,null,null,null,null,null,null,null,null,""]
[{"$f":"IF('START HERE'!$B$4=0,\"\",'START HERE'!$B$4)","v":""},null,null,null,null,null,null,null,null,null,null,null,null,null,null,null,null,null,""]
[{"$f":"IF('START HERE'!$B$4=0,\"\",'START HERE'!$B$4)","v":""},null,null,null,null,null,null,null,null,null,null,null,null,null,null,null,null,null,""]
[{"$f":"IF('START HERE'!$B$4=0,\"\",'START HERE'!$B$4)","v":""},null,null,null,null,null,null,null,null,null,null,null,null,null,null,null,null,null,""]
[{"$f":"IF('START HERE'!$B$4=0,\"\",'START HERE'!$B$4)","v":""},null,null,null,null,null,null,null,null,null,null,null,null,null,null,null,null,null,""]
[{"$f":"IF('START HERE'!$B$4=0,\"\",'START HERE'!$B$4)","v":""},null,null,null,null,null,null,null,null,null,null,null,null,null,null,null,null,null,""]
[{"$f":"IF('START HERE'!$B$4=0,\"\",'START HERE'!$B$4)","v":""},null,null,null,null,null,null,null,null,null,null,null,null,null,null,null,null,null,""]
[{"$f":"IF('START HERE'!$B$4=0,\"\",'START HERE'!$B$4)","v":""},null,null,null,null,null,null,null,null,null,null,null,null,null,null,null,null,null,""]
[{"$f":"IF('START HERE'!$B$4=0,\"\",'START HERE'!$B$4)","v":""},null,null,null,null,null,null,null,null,null,null,null,null,null,null,null,null,null,""]
[{"$f":"IF('START HERE'!$B$4=0,\"\",'START HERE'!$B$4)","v":""},null,null,null,null,null,null,null,null,null,null,null,null,null,null,null,null,null,""]
[{"$f":"IF('START HERE'!$B$4=0,\"\",'START HERE'!$B$4)","v":""},null,null,null,null,null,null,null,null,null,null,null,null,null,null,null,null,null,""]
[{"$f":"IF('START HERE'!$B$4=0,\"\",'START HERE'!$B$4)","v":""},null,null,null,null,null,null,null,null,null,null,null,null,null,null,null,null,null,""]
[{"$f":"IF('START HERE'!$B$4=0,\"\",'START HERE'!$B$4)","v":""},null,null,null,null,null,null,null,null,null,null,null,null,null,null,null,null,null,""]
[{"$f":"IF('START HERE'!$B$4=0,\"\",'START HERE'!$B$4)","v":""},null,null,null,null,null,null,null,null,null,null,null,null,null,null,null,null,null,""]
[{"$f":"IF('START HERE'!$B$4=0,\"\",'START HERE'!$B$4)","v":""},null,null,null,null,null,null,null,null,null,null,null,null,null,null,null,null,null,""]
[{"$f":"IF('START HERE'!$B$4=0,\"\",'START HERE'!$B$4)","v":""},null,null,null,null,null,null,null,null,null,null,null,null,null,null,null,null,null,""]
[{"$f":"IF('START HERE'!$B$4=0,\"\",'START HERE'!$B$4)","v":""},null,null,null,null,null,null,null,null,null,null,null,null,null,null,null,null,null,""]
[{"$f":"IF('START HERE'!$B$4=0,\"\",'START HERE'!$B$4)","v":""},null,null,null,null,null,null,null,null,null,null,null,null,null,null,null,null,null,""]
[{"$f":"IF('START HERE'!$B$4=0,\"\",'START HERE'!$B$4)","v":""},null,null,null,null,null,null,null,null,null,null,null,null,null,null,null,null,null,""]
[{"$f":"IF('START HERE'!$B$4=0,\"\",'START HERE'!$B$4)","v":""},null,null,null,null,null,null,null,null,null,null,null,null,null,null,null,null,null,""]
[{"$f":"IF('START HERE'!$B$4=0,\"\",'START HERE'!$B$4)","v":""},null,null,null,null,null,null,null,null,null,null,null,null,null,null,null,null,null,""]
[{"$f":"IF('START HERE'!$B$4=0,\"\",'START HERE'!$B$4)","v":""},null,null,null,null,null,null,null,null,null,null,null,null,null,null,null,null,null,""]
[{"$f":"IF('START HERE'!$B$4=0,\"\",'START HERE'!$B$4)","v":""},null,null,null,null,null,null,null,null,null,null,null,null,null,null,null,null,null,""]
[{"$f":"IF('START HERE'!$B$4=0,\"\",'START HERE'!$B$4)","v":""},null,null,null,null,null,null,null,null,null,null,null,null,null,null,null,null,null,""]
[{"$f":"IF('START HERE'!$B$4=0,\"\",'START HERE'!$B$4)","v":""},null,null,null,null,null,null,null,null,null,null,null,null,null,null,null,null,null,""]
[{"$f":"IF('START HERE'!$B$4=0,\"\",'START HERE'!$B$4)","v":""},null,null,null,null,null,null,null,null,null,null,null,null,null,null,null,null,null,""]
[{"$f":"IF('START HERE'!$B$4=0,\"\",'START HERE'!$B$4)","v":""},null,null,null,null,null,null,null,null,null,null,null,null,null,null,null,null,null,""]
[{"$f":"IF('START HERE'!$B$4=0,\"\",'START HERE'!$B$4)","v":""},null,null,null,null,null,null,null,null,null,null,null,null,null,null,null,null,null,""]
[{"$f":"IF('START HERE'!$B$4=0,\"\",'START HERE'!$B$4)","v":""},null,null,null,null,null,null,null,null,null,null,null,null,null,null,null,null,null,""]
[{"$f":"IF('START HERE'!$B$4=0,\"\",'START HERE'!$B$4)","v":""},null,null,null,null,null,null,null,null,null,null,null,null,null,null,null,null,null,""]
[{"$f":"IF('START HERE'!$B$4=0,\"\",'START HERE'!$B$4)","v":""},null,null,null,null,null,null,null,null,null,null,null,null,null,null,null,null,null,""]
[{"$f":"IF('START HERE'!$B$4=0,\"\",'START HERE'!$B$4)","v":""},null,null,null,null,null,null,null,null,null,null,null,null,null,null,null,null,null,""]
[{"$f":"IF('START HERE'!$B$4=0,\"\",'START HERE'!$B$4)","v":""},null,null,null,null,null,null,null,null,null,null,null,null,null,null,null,null,null,""]
[{"$f":"IF('START HERE'!$B$4=0,\"\",'START HERE'!$B$4)","v":""},null,null,null,null,null,null,null,null,null,null,null,null,null,null,null,null,null,""]
[{"$f":"IF('START HERE'!$B$4=0,\"\",'START HERE'!$B$4)","v":""},null,null,null,null,null,null,null,null,null,null,null,null,null,null,null,null,null,""]
[{"$f":"IF('START HERE'!$B$4=0,\"\",'START HERE'!$B$4)","v":""},null,null,null,null,null,null,null,null,null,null,null,null,null,null,null,null,null,""]
[{"$f":"IF('START HERE'!$B$4=0,\"\",'START HERE'!$B$4)","v":""},null,null,null,null,null,null,null,null,null,null,null,null,null,null,null,null,null,""]
[{"$f":"IF('START HERE'!$B$4=0,\"\",'START HERE'!$B$4)","v":""},null,null,null,null,null,null,null,null,null,null,null,null,null,null,null,null,null,""]
[{"$f":"IF('START HERE'!$B$4=0,\"\",'START HERE'!$B$4)","v":""},null,null,null,null,null,null,null,null,null,null,null,null,null,null,null,null,null,""]
[{"$f":"IF('START HERE'!$B$4=0,\"\",'START HERE'!$B$4)","v":""},null,null,null,null,null,null,null,null,null,null,null,null,null,null,null,null,null,""]
[{"$f":"IF('START HERE'!$B$4=0,\"\",'START HERE'!$B$4)","v":""},null,null,null,null,null,null,null,null,null,null,null,null,null,null,null,null,null,""]
[{"$f":"IF('START HERE'!$B$4=0,\"\",'START HERE'!$B$4)","v":""},null,null,null,null,null,null,null,null,null,null,null,null,null,null,null,null,null,""]
[{"$f":"IF('START HERE'!$B$4=0,\"\",'START HERE'!$B$4)","v":""},null,null,null,null,null,null,null,null,null,null,null,null,null,null,null,null,null,""]
[{"$f":"IF('START HERE'!$B$4=0,\"\",'START HERE'!$B$4)","v":""},null,null,null,null,null,null,null,null,null,null,null,null,null,null,null,null,null,""]
[{"$f":"IF('START HERE'!$B$4=0,\"\",'START HERE'!$B$4)","v":""},null,null,null,null,null,null,null,null,null,null,null,null,null,null,null,null,null,""]
[{"$f":"IF('START HERE'!$B$4=0,\"\",'START HERE'!$B$4)","v":""},null,null,null,null,null,null,null,null,null,null,null,null,null,null,null,null,null,""]
[{"$f":"IF('START HERE'!$B$4=0,\"\",'START HERE'!$B$4)","v":""},null,null,null,null,null,null,null,null,null,null,null,null,null,null,null,null,null,""]
[{"$f":"IF('START HERE'!$B$4=0,\"\",'START HERE'!$B$4)","v":""},null,null,null,null,null,null,null,null,null,null,null,null,null,null,null,null,null,""]
[{"$f":"IF('START HERE'!$B$4=0,\"\",'START HERE'!$B$4)","v":""},null,null,null,null,null,null,null,null,null,null,null,null,null,null,null,null,null,""]
[{"$f":"IF('START HERE'!$B$4=0,\"\",'START HERE'!$B$4)","v":""},null,null,null,null,null,null,null,null,null,null,null,null,null,null,null,null,null,""]
[{"$f":"IF('START HERE'!$B$4=0,\"\",'START HERE'!$B$4)","v":""},null,null,null,null,null,null,null,null,null,null,null,null,null,null,null,null,null,""]
[{"$f":"IF('START HERE'!$B$4=0,\"\",'START HERE'!$B$4)","v":""},null,null,null,null,null,null,null,null,null,null,null,null,null,null,null,null,null,""]
[{"$f":"IF('START HERE'!$B$4=0,\"\",'START HERE'!$B$4)","v":""},null,null,null,null,null,null,null,null,null,null,null,null,null,null,null,null,null,""]
[{"$f":"IF('START HERE'!$B$4=0,\"\",'START HERE'!$B$4)","v":""},null,null,null,null,null,null,null,null,null,null,null,null,null,null,null,null,null,""]
[{"$f":"IF('START HERE'!$B$4=0,\"\",'START HERE'!$B$4)","v":""},null,null,null,null,null,null,null,null,null,null,null,null,null,null,null,null,null,""]
[{"$f":"IF('START HERE'!$B$4=0,\"\",'START HERE'!$B$4)","v":""},null,null,null,null,null,null,null,null,null,null,null,null,null,null,null,null,null,""]
[{"$f":"IF('START HERE'!$B$4=0,\"\",'START HERE'!$B$4)","v":""},null,null,null,null,null,null,null,null,null,null,null,null,null,null,null,null,null,""]
[{"$f":"IF('START HERE'!$B$4=0,\"\",'START HERE'!$B$4)","v":""},null,null,null,null,null,null,null,null,null,null,null,null,null,null,null,null,null,""]
[{"$f":"IF('START HERE'!$B$4=0,\"\",'START HERE'!$B$4)","v":""},null,null,null,null,null,null,null,null,null,null,null,null,null,null,null,null,null,{"$f":"IF((R196+Q196+P196)=0,\"\",(R196+Q196+P196))","v":""}]
[{"$f":"IF('START HERE'!$B$4=0,\"\",'START HERE'!$B$4)","v":""},null,null,null,null,null,null,null,null,null,null,null,null,null,null,null,null,null,""]
[{"$f":"IF('START HERE'!$B$4=0,\"\",'START HERE'!$B$4)","v":""},null,null,null,null,null,null,null,null,null,null,null,null,null,null,null,null,null,""]
[{"$f":"IF('START HERE'!$B$4=0,\"\",'START HERE'!$B$4)","v":""},null,null,null,null,null,null,null,null,null,null,null,null,null,null,null,null,null,""]
[{"$f":"IF('START HERE'!$B$4=0,\"\",'START HERE'!$B$4)","v":""},null,null,null,null,null,null,null,null,null,null,null,null,null,null,null,null,null,""]
[{"$f":"IF('START HERE'!$B$4=0,\"\",'START HERE'!$B$4)","v":""},null,null,null,null,null,null,null,null,null,null,null,null,null,null,null,null,null,""]
[{"$f":"IF('START HERE'!$B$4=0,\"\",'START HERE'!$B$4)","v":""},null,null,null,null,null,null,null,null,null,null,null,null,null,null,null,null,null,""]
[{"$f":"IF('START HERE'!$B$4=0,\"\",'START HERE'!$B$4)","v":""},null,null,null,null,null,null,null,null,null,null,null,null,null,null,null,null,null,""]
[{"$f":"IF('START HERE'!$B$4=0,\"\",'START HERE'!$B$4)","v":""},null,null,null,null,null,null,null,null,null,null,null,null,null,null,null,null,null,""]
[{"$f":"IF('START HERE'!$B$4=0,\"\",'START HERE'!$B$4)","v":""},null,null,null,null,null,null,null,null,null,null,null,null,null,null,null,null,null,""]
[{"$f":"IF('START HERE'!$B$4=0,\"\",'START HERE'!$B$4)","v":""},null,null,null,null,null,null,null,null,null,null,null,null,null,null,null,null,null,""]
[{"$f":"IF('START HERE'!$B$4=0,\"\",'START HERE'!$B$4)","v":""},null,null,null,null,null,null,null,null,null,null,null,null,null,null,null,null,null,""]
[{"$f":"IF('START HERE'!$B$4=0,\"\",'START HERE'!$B$4)","v":""},null,null,null,null,null,null,null,null,null,null,null,null,null,null,null,null,null,""]
[{"$f":"IF('START HERE'!$B$4=0,\"\",'START HERE'!$B$4)","v":""},null,null,null,null,null,null,null,null,null,null,null,null,null,null,null,null,null,""]
[{"$f":"IF('START HERE'!$B$4=0,\"\",'START HERE'!$B$4)","v":""},null,null,null,null,null,null,null,null,null,null,null,null,null,null,null,null,null,""]
[{"$f":"IF('START HERE'!$B$4=0,\"\",'START HERE'!$B$4)","v":""},null,null,null,null,null,null,null,null,null,null,null,null,null,null,null,null,null,""]
[{"$f":"IF('START HERE'!$B$4=0,\"\",'START HERE'!$B$4)","v":""},null,null,null,null,null,null,null,null,null,null,null,null,null,null,null,null,null,""]
[{"$f":"IF('START HERE'!$B$4=0,\"\",'START HERE'!$B$4)","v":""},null,null,null,null,null,null,null,null,null,null,null,null,null,null,null,null,null,""]
[{"$f":"IF('START HERE'!$B$4=0,\"\",'START HERE'!$B$4)","v":""},null,null,null,null,null,null,null,null,null,null,null,null,null,null,null,null,null,""]
[{"$f":"IF('START HERE'!$B$4=0,\"\",'START HERE'!$B$4)","v":""},null,null,null,null,null,null,null,null,null,null,null,null,null,null,null,null,null,""]
[{"$f":"IF('START HERE'!$B$4=0,\"\",'START HERE'!$B$4)","v":""},null,null,null,null,null,null,null,null,null,null,null,null,null,null,null,null,null,""]
[{"$f":"IF('START HERE'!$B$4=0,\"\",'START HERE'!$B$4)","v":""},null,null,null,null,null,null,null,null,null,null,null,null,null,null,null,null,null,""]
[{"$f":"IF('START HERE'!$B$4=0,\"\",'START HERE'!$B$4)","v":""},null,null,null,null,null,null,null,null,null,null,null,null,null,null,null,null,null,""]
[{"$f":"IF('START HERE'!$B$4=0,\"\",'START HERE'!$B$4)","v":""},null,null,null,null,null,null,null,null,null,null,null,null,null,null,null,null,null,""]
[{"$f":"IF('START HERE'!$B$4=0,\"\",'START HERE'!$B$4)","v":""},null,null,null,null,null,null,null,null,null,null,null,null,null,null,null,null,null,""]
[{"$f":"IF('START HERE'!$B$4=0,\"\",'START HERE'!$B$4)","v":""},null,null,null,null,null,null,null,null,null,null,null,null,null,null,null,null,null,""]
[{"$f":"IF('START HERE'!$B$4=0,\"\",'START HERE'!$B$4)","v":""},null,null,null,null,null,null,null,null,null,null,null,null,null,null,null,null,null,""]
[{"$f":"IF('START HERE'!$B$4=0,\"\",'START HERE'!$B$4)","v":""},null,null,null,null,null,null,null,null,null,null,null,null,null,null,null,null,null,""]
[{"$f":"IF('START HERE'!$B$4=0,\"\",'START HERE'!$B$4)","v":""},null,null,null,null,null,null,null,null,null,null,null,null,null,null,null,null,null,""]
[{"$f":"IF('START HERE'!$B$4=0,\"\",'START HERE'!$B$4)","v":""},null,null,null,null,null,null,null,null,null,null,null,null,null,null,null,null,null,""]
[{"$f":"IF('START HERE'!$B$4=0,\"\",'START HERE'!$B$4)","v":""},null,null,null,null,null,null,null,null,null,null,null,null,null,null,null,null,null,""]
[{"$f":"IF('START HERE'!$B$4=0,\"\",'START HERE'!$B$4)","v":""},null,null,null,null,null,null,null,null,null,null,null,null,null,null,null,null,null,""]
[{"$f":"IF('START HERE'!$B$4=0,\"\",'START HERE'!$B$4)","v":""},null,null,null,null,null,null,null,null,null,null,null,null,null,null,null,null,null,""]
[{"$f":"IF('START HERE'!$B$4=0,\"\",'START HERE'!$B$4)","v":""},null,null,null,null,null,null,null,null,null,null,null,null,null,null,null,null,null,""]
[{"$f":"IF('START HERE'!$B$4=0,\"\",'START HERE'!$B$4)","v":""},null,null,null,null,null,null,null,null,null,null,null,null,null,null,null,null,null,""]
[{"$f":"IF('START HERE'!$B$4=0,\"\",'START HERE'!$B$4)","v":""},null,null,null,null,null,null,null,null,null,null,null,null,null,null,null,null,null,""]
[{"$f":"IF('START HERE'!$B$4=0,\"\",'START HERE'!$B$4)","v":""},null,null,null,null,null,null,null,null,null,null,null,null,null,null,null,null,null,""]
[{"$f":"IF('START HERE'!$B$4=0,\"\",'START HERE'!$B$4)","v":""},null,null,null,null,null,null,null,null,null,null,null,null,null,null,null,null,null,""]
[{"$f":"IF('START HERE'!$B$4=0,\"\",'START HERE'!$B$4)","v":""},null,null,null,null,null,null,null,null,null,null,null,null,null,null,null,null,null,""]
[{"$f":"IF('START HERE'!$B$4=0,\"\",'START HERE'!$B$4)","v":""},null,null,null,null,null,null,null,null,null,null,null,null,null,null,null,null,null,""]
[{"$f":"IF('START HERE'!$B$4=0,\"\",'START HERE'!$B$4)","v":""},null,null,null,null,null,null,null,null,null,null,null,null,null,null,null,null,null,""]
[{"$f":"IF('START HERE'!$B$4=0,\"\",'START HERE'!$B$4)","v":""},null,null,null,null,null,null,null,null,null,null,null,null,null,null,null,null,null,""]
[{"$f":"IF('START HERE'!$B$4=0,\"\",'START HERE'!$B$4)","v":""},null,null,null,null,null,null,null,null,null,null,null,null,null,null,null,null,null,""]
[{"$f":"IF('START HERE'!$B$4=0,\"\",'START HERE'!$B$4)","v":""},null,null,null,null,null,null,null,null,null,null,null,null,null,null,null,null,null,""]
[{"$f":"IF('START HERE'!$B$4=0,\"\",'START HERE'!$B$4)","v":""},null,null,null,null,null,null,null,null,null,null,null,null,null,null,null,null,null,""]
[{"$f":"IF('START HERE'!$B$4=0,\"\",'START HERE'!$B$4)","v":""},null,null,null,null,null,null,null,null,null,null,null,null,null,null,null,null,null,""]
[{"$f":"IF('START HERE'!$B$4=0,\"\",'START HERE'!$B$4)","v":""},null,null,null,null,null,null,null,null,null,null,null,null,null,null,null,null,null,""]
[{"$f":"IF('START HERE'!$B$4=0,\"\",'START HERE'!$B$4)","v":""},null,null,null,null,null,null,null,null,null,null,null,null,null,null,null,null,null,""]
[{"$f":"IF('START HERE'!$B$4=0,\"\",'START HERE'!$B$4)","v":""},null,null,null,null,null,null,null,null,null,null,null,null,null,null,null,null,null,""]
[{"$f":"IF('START HERE'!$B$4=0,\"\",'START HERE'!$B$4)","v":""},null,null,null,null,null,null,null,null,null,null,null,null,null,null,null,null,null,""]
[{"$f":"IF('START HERE'!$B$4=0,\"\",'START HERE'!$B$4)","v":""},null,null,null,null,null,null,null,null,null,null,null,null,null,null,null,null,null,""]
[{"$f":"IF('START HERE'!$B$4=0,\"\",'START HERE'!$B$4)","v":""},null,null,null,null,null,null,null,null,null,null,null,null,null,null,null,null,null,""]
[{"$f":"IF('START HERE'!$B$4=0,\"\",'START HERE'!$B$4)","v":""},null,null,null,null,null,null,null,null,null,null,null,null,null,null,null,null,null,""]
[{"$f":"IF('START HERE'!$B$4=0,\"\",'START HERE'!$B$4)","v":""},null,null,null,null,null,null,null,null,null,null,null,null,null,null,null,null,null,""]
[{"$f":"IF('START HERE'!$B$4=0,\"\",'START HERE'!$B$4)","v":""},null,null,null,null,null,null,null,null,null,null,null,null,null,null,null,null,null,""]
[{"$f":"IF('START HERE'!$B$4=0,\"\",'START HERE'!$B$4)","v":""},null,null,null,null,null,null,null,null,null,null,null,null,null,null,null,null,null,""]
[{"$f":"IF('START HERE'!$B$4=0,\"\",'START HERE'!$B$4)","v":""},null,null,null,null,null,null,null,null,null,null,null,null,null,null,null,null,null,""]
[{"$f":"IF('START HERE'!$B$4=0,\"\",'START HERE'!$B$4)","v":""},null,null,null,null,null,null,null,null,null,null,null,null,null,null,null,null,null,""]
[{"$f":"IF('START HERE'!$B$4=0,\"\",'START HERE'!$B$4)","v":""},null,null,null,null,null,null,null,null,null,null,null,null,null,null,null,null,null,""]
[{"$f":"IF('START HERE'!$B$4=0,\"\",'START HERE'!$B$4)","v":""},null,null,null,null,null,null,null,null,null,null,null,null,null,null,null,null,null,""]
[{"$f":"IF('START HERE'!$B$4=0,\"\",'START HERE'!$B$4)","v":""},null,null,null,null,null,null,null,null,null,null,null,null,null,null,null,null,null,""]
[{"$f":"IF('START HERE'!$B$4=0,\"\",'START HERE'!$B$4)","v":""},null,null,null,null,null,null,null,null,null,null,null,null,null,null,null,null,null,""]
[{"$f":"IF('START HERE'!$B$4=0,\"\",'START HERE'!$B$4)","v":""},null,null,null,null,null,null,null,null,null,null,null,null,null,null,null,null,null,""]
[{"$f":"IF('START HERE'!$B$4=0,\"\",'START HERE'!$B$4)","v":""},null,null,null,null,null,null,null,null,null,null,null,null,null,null,null,null,null,""]
[{"$f":"IF('START HERE'!$B$4=0,\"\",'START HERE'!$B$4)","v":""},null,null,null,null,null,null,null,null,null,null,null,null,null,null,null,null,null,{"$f":"IF((R260+Q260+P260)=0,\"\",(R260+Q260+P260))","v":""}]
[{"$f":"IF('START HERE'!$B$4=0,\"\",'START HERE'!$B$4)","v":""},null,null,null,null,null,null,null,null,null,null,null,null,null,null,null,null,null,""]
[{"$f":"IF('START HERE'!$B$4=0,\"\",'START HERE'!$B$4)","v":""},null,null,null,null,null,null,null,null,null,null,null,null,null,null,null,null,null,""]
[{"$f":"IF('START HERE'!$B$4=0,\"\",'START HERE'!$B$4)","v":""},null,null,null,null,null,null,null,null,null,null,null,null,null,null,null,null,null,""]
[{"$f":"IF('START HERE'!$B$4=0,\"\",'START HERE'!$B$4)","v":""},null,null,null,null,null,null,null,null,null,null,null,null,null,null,null,null,null,""]
[{"$f":"IF('START HERE'!$B$4=0,\"\",'START HERE'!$B$4)","v":""},null,null,null,null,null,null,null,null,null,null,null,null,null,null,null,null,null,""]
[{"$f":"IF('START HERE'!$B$4=0,\"\",'START HERE'!$B$4)","v":""},null,null,null,null,null,null,null,null,null,null,null,null,null,null,null,null,null,""]
[{"$f":"IF('START HERE'!$B$4=0,\"\",'START HERE'!$B$4)","v":""},null,null,null,null,null,null,null,null,null,null,null,null,null,null,null,null,null,""]
[{"$f":"IF('START HERE'!$B$4=0,\"\",'START HERE'!$B$4)","v":""},null,null,null,null,null,null,null,null,null,null,null,null,null,null,null,null,null,""]
[{"$f":"IF('START HERE'!$B$4=0,\"\",'START HERE'!$B$4)","v":""},null,null,null,null,null,null,null,null,null,null,null,null,null,null,null,null,null,""]
[{"$f":"IF('START HERE'!$B$4=0,\"\",'START HERE'!$B$4)","v":""},null,null,null,null,null,null,null,null,null,null,null,null,null,null,null,null,null,""]
[{"$f":"IF('START HERE'!$B$4=0,\"\",'START HERE'!$B$4)","v":""},null,null,null,null,null,null,null,null,null,null,null,null,null,null,null,null,null,""]
[{"$f":"IF('START HERE'!$B$4=0,\"\",'START HERE'!$B$4)","v":""},null,null,null,null,null,null,null,null,null,null,null,null,null,null,null,null,null,""]
[{"$f":"IF('START HERE'!$B$4=0,\"\",'START HERE'!$B$4)","v":""},null,null,null,null,null,null,null,null,null,null,null,null,null,null,null,null,null,""]
[{"$f":"IF('START HERE'!$B$4=0,\"\",'START HERE'!$B$4)","v":""},null,null,null,null,null,null,null,null,null,null,null,null,null,null,null,null,null,""]
[{"$f":"IF('START HERE'!$B$4=0,\"\",'START HERE'!$B$4)","v":""},null,null,null,null,null,null,null,null,null,null,null,null,null,null,null,null,null,""]
[{"$f":"IF('START HERE'!$B$4=0,\"\",'START HERE'!$B$4)","v":""},null,null,null,null,null,null,null,null,null,null,null,null,null,null,null,null,null,""]
[{"$f":"IF('START HERE'!$B$4=0,\"\",'START HERE'!$B$4)","v":""},null,null,null,null,null,null,null,null,null,null,null,null,null,null,null,null,null,""]
[{"$f":"IF('START HERE'!$B$4=0,\"\",'START HERE'!$B$4)","v":""},null,null,null,null,null,null,null,null,null,null,null,null,null,null,null,null,null,""]
[{"$f":"IF('START HERE'!$B$4=0,\"\",'START HERE'!$B$4)","v":""},null,null,null,null,null,null,null,null,null,null,null,null,null,null,null,null,null,""]
[{"$f":"IF('START HERE'!$B$4=0,\"\",'START HERE'!$B$4)","v":""},null,null,null,null,null,null,null,null,null,null,null,null,null,null,null,null,null,""]
[{"$f":"IF('START HERE'!$B$4=0,\"\",'START HERE'!$B$4)","v":""},null,null,null,null,null,null,null,null,null,null,null,null,null,null,null,null,null,""]
[{"$f":"IF('START HERE'!$B$4=0,\"\",'START HERE'!$B$4)","v":""},null,null,null,null,null,null,null,null,null,null,null,null,null,null,null,null,null,""]
[{"$f":"IF('START HERE'!$B$4=0,\"\",'START HERE'!$B$4)","v":""},null,null,null,null,null,null,null,null,null,null,null,null,null,null,null,null,null,""]
[{"$f":"IF('START HERE'!$B$4=0,\"\",'START HERE'!$B$4)","v":""},null,null,null,null,null,null,null,null,null,null,null,null,null,null,null,null,null,""]
[{"$f":"IF('START HERE'!$B$4=0,\"\",'START HERE'!$B$4)","v":""},null,null,null,null,null,null,null,null,null,null,null,null,null,null,null,null,null,""]
[{"$f":"IF('START HERE'!$B$4=0,\"\",'START HERE'!$B$4)","v":""},null,null,null,null,null,null,null,null,null,null,null,null,null,null,null,null,null,""]
[{"$f":"IF('START HERE'!$B$4=0,\"\",'START HERE'!$B$4)","v":""},null,null,null,null,null,null,null,null,null,null,null,null,null,null,null,null,null,""]
[{"$f":"IF('START HERE'!$B$4=0,\"\",'START HERE'!$B$4)","v":""},null,null,null,null,null,null,null,null,null,null,null,null,null,null,null,null,null,""]
[{"$f":"IF('START HERE'!$B$4=0,\"\",'START HERE'!$B$4)","v":""},null,null,null,null,null,null,null,null,null,null,null,null,null,null,null,null,null,""]
[{"$f":"IF('START HERE'!$B$4=0,\"\",'START HERE'!$B$4)","v":""},null,null,null,null,null,null,null,null,null,null,null,null,null,null,null,null,null,""]
[{"$f":"IF('START HERE'!$B$4=0,\"\",'START HERE'!$B$4)","v":""},null,null,null,null,null,null,null,null,null,null,null,null,null,null,null,null,null,""]
[{"$f":"IF('START HERE'!$B$4=0,\"\",'START HERE'!$B$4)","v":""},null,null,null,null,null,null,null,null,null,null,null,null,null,null,null,null,null,""]
[{"$f":"IF('START HERE'!$B$4=0,\"\",'START HERE'!$B$4)","v":""},null,null,null,null,null,null,null,null,null,null,null,null,null,null,null,null,null,""]
[{"$f":"IF('START HERE'!$B$4=0,\"\",'START HERE'!$B$4)","v":""},null,null,null,null,null,null,null,null,null,null,null,null,null,null,null,null,null,""]
[{"$f":"IF('START HERE'!$B$4=0,\"\",'START HERE'!$B$4)","v":""},null,null,null,null,null,null,null,null,null,null,null,null,null,null,null,null,null,""]
[{"$f":"IF('START HERE'!$B$4=0,\"\",'START HERE'!$B$4)","v":""},null,null,null,null,null,null,null,null,null,null,null,null,null,null,null,null,null,""]
[{"$f":"IF('START HERE'!$B$4=0,\"\",'START HERE'!$B$4)","v":""},null,null,null,null,null,null,null,null,null,null,null,null,null,null,null,null,null,""]
[{"$f":"IF('START HERE'!$B$4=0,\"\",'START HERE'!$B$4)","v":""},null,null,null,null,null,null,null,null,null,null,null,null,null,null,null,null,null,""]
[{"$f":"IF('START HERE'!$B$4=0,\"\",'START HERE'!$B$4)","v":""},null,null,null,null,null,null,null,null,null,null,null,null,null,null,null,null,null,""]
[{"$f":"IF('START HERE'!$B$4=0,\"\",'START HERE'!$B$4)","v":""},null,null,null,null,null,null,null,null,null,null,null,null,null,null,null,null,null,""]
[{"$f":"IF('START HERE'!$B$4=0,\"\",'START HERE'!$B$4)","v":""},null,null,null,null,null,null,null,null,null,null,null,null,null,null,null,null,null,""]
[{"$f":"IF('START HERE'!$B$4=0,\"\",'START HERE'!$B$4)","v":""},null,null,null,null,null,null,null,null,null,null,null,null,null,null,null,null,null,""]
[{"$f":"IF('START HERE'!$B$4=0,\"\",'START HERE'!$B$4)","v":""},null,null,null,null,null,null,null,null,null,null,null,null,null,null,null,null,null,""]
[{"$f":"IF('START HERE'!$B$4=0,\"\",'START HERE'!$B$4)","v":""},null,null,null,null,null,null,null,null,null,null,null,null,null,null,null,null,null,""]
[{"$f":"IF('START HERE'!$B$4=0,\"\",'START HERE'!$B$4)","v":""},null,null,null,null,null,null,null,null,null,null,null,null,null,null,null,null,null,""]
[{"$f":"IF('START HERE'!$B$4=0,\"\",'START HERE'!$B$4)","v":""},null,null,null,null,null,null,null,null,null,null,null,null,null,null,null,null,null,""]
[{"$f":"IF('START HERE'!$B$4=0,\"\",'START HERE'!$B$4)","v":""},null,null,null,null,null,null,null,null,null,null,null,null,null,null,null,null,null,""]
[{"$f":"IF('START HERE'!$B$4=0,\"\",'START HERE'!$B$4)","v":""},null,null,null,null,null,null,null,null,null,null,null,null,null,null,null,null,null,""]
[{"$f":"IF('START HERE'!$B$4=0,\"\",'START HERE'!$B$4)","v":""},null,null,null,null,null,null,null,null,null,null,null,null,null,null,null,null,null,""]
[{"$f":"IF('START HERE'!$B$4=0,\"\",'START HERE'!$B$4)","v":""},null,null,null,null,null,null,null,null,null,null,null,null,null,null,null,null,null,""]
[{"$f":"IF('START HERE'!$B$4=0,\"\",'START HERE'!$B$4)","v":""},null,null,null,null,null,null,null,null,null,null,null,null,null,null,null,null,null,""]
[{"$f":"IF('START HERE'!$B$4=0,\"\",'START HERE'!$B$4)","v":""},null,null,null,null,null,null,null,null,null,null,null,null,null,null,null,null,null,""]
[{"$f":"IF('START HERE'!$B$4=0,\"\",'START HERE'!$B$4)","v":""},null,null,null,null,null,null,null,null,null,null,null,null,null,null,null,null,null,""]
[{"$f":"IF('START HERE'!$B$4=0,\"\",'START HERE'!$B$4)","v":""},null,null,null,null,null,null,null,null,null,null,null,null,null,null,null,null,null,""]
[{"$f":"IF('START HERE'!$B$4=0,\"\",'START HERE'!$B$4)","v":""},null,null,null,null,null,null,null,null,null,null,null,null,null,null,null,null,null,""]
[{"$f":"IF('START HERE'!$B$4=0,\"\",'START HERE'!$B$4)","v":""},null,null,null,null,null,null,null,null,null,null,null,null,null,null,null,null,null,""]
[{"$f":"IF('START HERE'!$B$4=0,\"\",'START HERE'!$B$4)","v":""},null,null,null,null,null,null,null,null,null,null,null,null,null,null,null,null,null,""]
[{"$f":"IF('START HERE'!$B$4=0,\"\",'START HERE'!$B$4)","v":""},null,null,null,null,null,null,null,null,null,null,null,null,null,null,null,null,null,""]
[{"$f":"IF('START HERE'!$B$4=0,\"\",'START HERE'!$B$4)","v":""},null,null,null,null,null,null,null,null,null,null,null,null,null,null,null,null,null,""]
[{"$f":"IF('START HERE'!$B$4=0,\"\",'START HERE'!$B$4)","v":""},null,null,null,null,null,null,null,null,null,null,null,null,null,null,null,null,null,""]
[{"$f":"IF('START HERE'!$B$4=0,\"\",'START HERE'!$B$4)","v":""},null,null,null,null,null,null,null,null,null,null,null,null,null,null,null,null,null,""]
[{"$f":"IF('START HERE'!$B$4=0,\"\",'START HERE'!$B$4)","v":""},null,null,null,null,null,null,null,null,null,null,null,null,null,null,null,null,null,""]
[{"$f":"IF('START HERE'!$B$4=0,\"\",'START HERE'!$B$4)","v":""},null,null,null,null,null,null,null,null,null,null,null,null,null,null,null,null,null,""]
[{"$f":"IF('START HERE'!$B$4=0,\"\",'START HERE'!$B$4)","v":""},null,null,null,null,null,null,null,null,null,null,null,null,null,null,null,null,null,{"$f":"IF((R324+Q324+P324)=0,\"\",(R324+Q324+P324))","v":""}]
[{"$f":"IF('START HERE'!$B$4=0,\"\",'START HERE'!$B$4)","v":""},null,null,null,null,null,null,null,null,null,null,null,null,null,null,null,null,null,""]
[{"$f":"IF('START HERE'!$B$4=0,\"\",'START HERE'!$B$4)","v":""},null,null,null,null,null,null,null,null,null,null,null,null,null,null,null,null,null,""]
[{"$f":"IF('START HERE'!$B$4=0,\"\",'START HERE'!$B$4)","v":""},null,null,null,null,null,null,null,null,null,null,null,null,null,null,null,null,null,""]
[{"$f":"IF('START HERE'!$B$4=0,\"\",'START HERE'!$B$4)","v":""},null,null,null,null,null,null,null,null,null,null,null,null,null,null,null,null,null,""]
[{"$f":"IF('START HERE'!$B$4=0,\"\",'START HERE'!$B$4)","v":""},null,null,null,null,null,null,null,null,null,null,null,null,null,null,null,null,null,""]
[{"$f":"IF('START HERE'!$B$4=0,\"\",'START HERE'!$B$4)","v":""},null,null,null,null,null,null,null,null,null,null,null,null,null,null,null,null,null,""]
[{"$f":"IF('START HERE'!$B$4=0,\"\",'START HERE'!$B$4)","v":""},null,null,null,null,null,null,null,null,null,null,null,null,null,null,null,null,null,""]
[{"$f":"IF('START HERE'!$B$4=0,\"\",'START HERE'!$B$4)","v":""},null,null,null,null,null,null,null,null,null,null,null,null,null,null,null,null,null,""]
[{"$f":"IF('START HERE'!$B$4=0,\"\",'START HERE'!$B$4)","v":""},null,null,null,null,null,null,null,null,null,null,null,null,null,null,null,null,null,""]
[{"$f":"IF('START HERE'!$B$4=0,\"\",'START HERE'!$B$4)","v":""},null,null,null,null,null,null,null,null,null,null,null,null,null,null,null,null,null,""]
[{"$f":"IF('START HERE'!$B$4=0,\"\",'START HERE'!$B$4)","v":""},null,null,null,null,null,null,null,null,null,null,null,null,null,null,null,null,null,""]
[{"$f":"IF('START HERE'!$B$4=0,\"\",'START HERE'!$B$4)","v":""},null,null,null,null,null,null,null,null,null,null,null,null,null,null,null,null,null,""]
[{"$f":"IF('START HERE'!$B$4=0,\"\",'START HERE'!$B$4)","v":""},null,null,null,null,null,null,null,null,null,null,null,null,null,null,null,null,null,""]
[{"$f":"IF('START HERE'!$B$4=0,\"\",'START HERE'!$B$4)","v":""},null,null,null,null,null,null,null,null,null,null,null,null,null,null,null,null,null,""]
[{"$f":"IF('START HERE'!$B$4=0,\"\",'START HERE'!$B$4)","v":""},null,null,null,null,null,null,null,null,null,null,null,null,null,null,null,null,null,""]
[{"$f":"IF('START HERE'!$B$4=0,\"\",'START HERE'!$B$4)","v":""},null,null,null,null,null,null,null,null,null,null,null,null,null,null,null,null,null,""]
[{"$f":"IF('START HERE'!$B$4=0,\"\",'START HERE'!$B$4)","v":""},null,null,null,null,null,null,null,null,null,null,null,null,null,null,null,null,null,""]
[{"$f":"IF('START HERE'!$B$4=0,\"\",'START HERE'!$B$4)","v":""},null,null,null,null,null,null,null,null,null,null,null,null,null,null,null,null,null,""]
[{"$f":"IF('START HERE'!$B$4=0,\"\",'START HERE'!$B$4)","v":""},null,null,null,null,null,null,null,null,null,null,null,null,null,null,null,null,null,""]
[{"$f":"IF('START HERE'!$B$4=0,\"\",'START HERE'!$B$4)","v":""},null,null,null,null,null,null,null,null,null,null,null,null,null,null,null,null,null,""]
[{"$f":"IF('START HERE'!$B$4=0,\"\",'START HERE'!$B$4)","v":""},null,null,null,null,null,null,null,null,null,null,null,null,null,null,null,null,null,""]
[{"$f":"IF('START HERE'!$B$4=0,\"\",'START HERE'!$B$4)","v":""},null,null,null,null,null,null,null,null,null,null,null,null,null,null,null,null,null,""]
[{"$f":"IF('START HERE'!$B$4=0,\"\",'START HERE'!$B$4)","v":""},null,null,null,null,null,null,null,null,null,null,null,null,null,null,null,null,null,""]
[{"$f":"IF('START HERE'!$B$4=0,\"\",'START HERE'!$B$4)","v":""},null,null,null,null,null,null,null,null,null,null,null,null,null,null,null,null,null,""]
[{"$f":"IF('START HERE'!$B$4=0,\"\",'START HERE'!$B$4)","v":""},null,null,null,null,null,null,null,null,null,null,null,null,null,null,null,null,null,""]
[{"$f":"IF('START HERE'!$B$4=0,\"\",'START HERE'!$B$4)","v":""},null,null,null,null,null,null,null,null,null,null,null,null,null,null,null,null,null,""]
[{"$f":"IF('START HERE'!$B$4=0,\"\",'START HERE'!$B$4)","v":""},null,null,null,null,null,null,null,null,null,null,null,null,null,null,null,null,null,""]
[{"$f":"IF('START HERE'!$B$4=0,\"\",'START HERE'!$B$4)","v":""},null,null,null,null,null,null,null,null,null,null,null,null,null,null,null,null,null,""]
[{"$f":"IF('START HERE'!$B$4=0,\"\",'START HERE'!$B$4)","v":""},null,null,null,null,null,null,null,null,null,null,null,null,null,null,null,null,null,""]
[{"$f":"IF('START HERE'!$B$4=0,\"\",'START HERE'!$B$4)","v":""},null,null,null,null,null,null,null,null,null,null,null,null,null,null,null,null,null,""]
[{"$f":"IF('START HERE'!$B$4=0,\"\",'START HERE'!$B$4)","v":""},null,null,null,null,null,null,null,null,null,null,null,null,null,null,null,null,null,""]
[{"$f":"IF('START HERE'!$B$4=0,\"\",'START HERE'!$B$4)","v":""},null,null,null,null,null,null,null,null,null,null,null,null,null,null,null,null,null,""]
[{"$f":"IF('START HERE'!$B$4=0,\"\",'START HERE'!$B$4)","v":""},null,null,null,null,null,null,null,null,null,null,null,null,null,null,null,null,null,""]
[{"$f":"IF('START HERE'!$B$4=0,\"\",'START HERE'!$B$4)","v":""},null,null,null,null,null,null,null,null,null,null,null,null,null,null,null,null,null,""]
[{"$f":"IF('START HERE'!$B$4=0,\"\",'START HERE'!$B$4)","v":""},null,null,null,null,null,null,null,null,null,null,null,null,null,null,null,null,null,""]
[{"$f":"IF('START HERE'!$B$4=0,\"\",'START HERE'!$B$4)","v":""},null,null,null,null,null,null,null,null,null,null,null,null,null,null,null,null,null,""]
[{"$f":"IF('START HERE'!$B$4=0,\"\",'START HERE'!$B$4)","v":""},null,null,null,null,null,null,null,null,null,null,null,null,null,null,null,null,null,""]
[{"$f":"IF('START HERE'!$B$4=0,\"\",'START HERE'!$B$4)","v":""},null,null,null,null,null,null,null,null,null,null,null,null,null,null,null,null,null,""]
[{"$f":"IF('START HERE'!$B$4=0,\"\",'START HERE'!$B$4)","v":""},null,null,null,null,null,null,null,null,null,null,null,null,null,null,null,null,null,""]
[{"$f":"IF('START HERE'!$B$4=0,\"\",'START HERE'!$B$4)","v":""},null,null,null,null,null,null,null,null,null,null,null,null,null,null,null,null,null,""]
[{"$f":"IF('START HERE'!$B$4=0,\"\",'START HERE'!$B$4)","v":""},null,null,null,null,null,null,null,null,null,null,null,null,null,null,null,null,null,""]
[{"$f":"IF('START HERE'!$B$4=0,\"\",'START HERE'!$B$4)","v":""},null,null,null,null,null,null,null,null,null,null,null,null,null,null,null,null,null,""]
[{"$f":"IF('START HERE'!$B$4=0,\"\",'START HERE'!$B$4)","v":""},null,null,null,null,null,null,null,null,null,null,null,null,null,null,null,null,null,""]
[{"$f":"IF('START HERE'!$B$4=0,\"\",'START HERE'!$B$4)","v":""},null,null,null,null,null,null,null,null,null,null,null,null,null,null,null,null,null,""]
[{"$f":"IF('START HERE'!$B$4=0,\"\",'START HERE'!$B$4)","v":""},null,null,null,null,null,null,null,null,null,null,null,null,null,null,null,null,null,""]
[{"$f":"IF('START HERE'!$B$4=0,\"\",'START HERE'!$B$4)","v":""},null,null,null,null,null,null,null,null,null,null,null,null,null,null,null,null,null,""]
[{"$f":"IF('START HERE'!$B$4=0,\"\",'START HERE'!$B$4)","v":""},null,null,null,null,null,null,null,null,null,null,null,null,null,null,null,null,null,""]
[{"$f":"IF('START HERE'!$B$4=0,\"\",'START HERE'!$B$4)","v":""},null,null,null,null,null,null,null,null,null,null,null,null,null,null,null,null,null,""]
[{"$f":"IF('START HERE'!$B$4=0,\"\",'START HERE'!$B$4)","v":""},null,null,null,null,null,null,null,null,null,null,null,null,null,null,null,null,null,""]
[{"$f":"IF('START HERE'!$B$4=0,\"\",'START HERE'!$B$4)","v":""},null,null,null,null,null,null,null,null,null,null,null,null,null,null,null,null,null,""]
[{"$f":"IF('START HERE'!$B$4=0,\"\",'START HERE'!$B$4)","v":""},null,null,null,null,null,null,null,null,null,null,null,null,null,null,null,null,null,""]
[{"$f":"IF('START HERE'!$B$4=0,\"\",'START HERE'!$B$4)","v":""},null,null,null,null,null,null,null,null,null,null,null,null,null,null,null,null,null,""]
[{"$f":"IF('START HERE'!$B$4=0,\"\",'START HERE'!$B$4)","v":""},null,null,null,null,null,null,null,null,null,null,null,null,null,null,null,null,null,""]
[{"$f":"IF('START HERE'!$B$4=0,\"\",'START HERE'!$B$4)","v":""},null,null,null,null,null,null,null,null,null,null,null,null,null,null,null,null,null,""]
[{"$f":"IF('START HERE'!$B$4=0,\"\",'START HERE'!$B$4)","v":""},null,null,null,null,null,null,null,null,null,null,null,null,null,null,null,null,null,""]
[{"$f":"IF('START HERE'!$B$4=0,\"\",'START HERE'!$B$4)","v":""},null,null,null,null,null,null,null,null,null,null,null,null,null,null,null,null,null,""]
[{"$f":"IF('START HERE'!$B$4=0,\"\",'START HERE'!$B$4)","v":""},null,null,null,null,null,null,null,null,null,null,null,null,null,null,null,null,null,""]
[{"$f":"IF('START HERE'!$B$4=0,\"\",'START HERE'!$B$4)","v":""},null,null,null,null,null,null,null,null,null,null,null,null,null,null,null,null,null,""]
[{"$f":"IF('START HERE'!$B$4=0,\"\",'START HERE'!$B$4)","v":""},null,null,null,null,null,null,null,null,null,null,null,null,null,null,null,null,null,""]
[{"$f":"IF('START HERE'!$B$4=0,\"\",'START HERE'!$B$4)","v":""},null,null,null,null,null,null,null,null,null,null,null,null,null,null,null,null,null,""]
[{"$f":"IF('START HERE'!$B$4=0,\"\",'START HERE'!$B$4)","v":""},null,null,null,null,null,null,null,null,null,null,null,null,null,null,null,null,null,""]
[{"$f":"IF('START HERE'!$B$4=0,\"\",'START HERE'!$B$4)","v":""},null,null,null,null,null,null,null,null,null,null,null,null,null,null,null,null,null,""]
[{"$f":"IF('START HERE'!$B$4=0,\"\",'START HERE'!$B$4)","v":""},null,null,null,null,null,null,null,null,null,null,null,null,null,null,null,null,null,""]
[{"$f":"IF('START HERE'!$B$4=0,\"\",'START HERE'!$B$4)","v":""},null,null,null,null,null,null,null,null,null,null,null,null,null,null,null,null,null,{"$f":"IF((R388+Q388+P388)=0,\"\",(R388+Q388+P388))","v":""}]
[{"$f":"IF('START HERE'!$B$4=0,\"\",'START HERE'!$B$4)","v":""},null,null,null,null,null,null,null,null,null,null,null,null,null,null,null,null,null,""]
[{"$f":"IF('START HERE'!$B$4=0,\"\",'START HERE'!$B$4)","v":""},null,null,null,null,null,null,null,null,null,null,null,null,null,null,null,null,null,""]
[{"$f":"IF('START HERE'!$B$4=0,\"\",'START HERE'!$B$4)","v":""},null,null,null,null,null,null,null,null,null,null,null,null,null,null,null,null,null,""]
[{"$f":"IF('START HERE'!$B$4=0,\"\",'START HERE'!$B$4)","v":""},null,null,null,null,null,null,null,null,null,null,null,null,null,null,null,null,null,""]
[{"$f":"IF('START HERE'!$B$4=0,\"\",'START HERE'!$B$4)","v":""},null,null,null,null,null,null,null,null,null,null,null,null,null,null,null,null,null,""]
[{"$f":"IF('START HERE'!$B$4=0,\"\",'START HERE'!$B$4)","v":""},null,null,null,null,null,null,null,null,null,null,null,null,null,null,null,null,null,""]
[{"$f":"IF('START HERE'!$B$4=0,\"\",'START HERE'!$B$4)","v":""},null,null,null,null,null,null,null,null,null,null,null,null,null,null,null,null,null,""]
[{"$f":"IF('START HERE'!$B$4=0,\"\",'START HERE'!$B$4)","v":""},null,null,null,null,null,null,null,null,null,null,null,null,null,null,null,null,null,""]
[{"$f":"IF('START HERE'!$B$4=0,\"\",'START HERE'!$B$4)","v":""},null,null,null,null,null,null,null,null,null,null,null,null,null,null,null,null,null,""]
[{"$f":"IF('START HERE'!$B$4=0,\"\",'START HERE'!$B$4)","v":""},null,null,null,null,null,null,null,null,null,null,null,null,null,null,null,null,null,""]
[{"$f":"IF('START HERE'!$B$4=0,\"\",'START HERE'!$B$4)","v":""},null,null,null,null,null,null,null,null,null,null,null,null,null,null,null,null,null,""]
[{"$f":"IF('START HERE'!$B$4=0,\"\",'START HERE'!$B$4)","v":""},null,null,null,null,null,null,null,null,null,null,null,null,null,null,null,null,null,""]
[{"$f":"IF('START HERE'!$B$4=0,\"\",'START HERE'!$B$4)","v":""},null,null,null,null,null,null,null,null,null,null,null,null,null,null,null,null,null,""]
[{"$f":"IF('START HERE'!$B$4=0,\"\",'START HERE'!$B$4)","v":""},null,null,null,null,null,null,null,null,null,null,null,null,null,null,null,null,null,""]
[{"$f":"IF('START HERE'!$B$4=0,\"\",'START HERE'!$B$4)","v":""},null,null,null,null,null,null,null,null,null,null,null,null,null,null,null,null,null,""]
[{"$f":"IF('START HERE'!$B$4=0,\"\",'START HERE'!$B$4)","v":""},null,null,null,null,null,null,null,null,null,null,null,null,null,null,null,null,null,""]
[{"$f":"IF('START HERE'!$B$4=0,\"\",'START HERE'!$B$4)","v":""},null,null,null,null,null,null,null,null,null,null,null,null,null,null,null,null,null,""]
[{"$f":"IF('START HERE'!$B$4=0,\"\",'START HERE'!$B$4)","v":""},null,null,null,null,null,null,null,null,null,null,null,null,null,null,null,null,null,""]
[{"$f":"IF('START HERE'!$B$4=0,\"\",'START HERE'!$B$4)","v":""},null,null,null,null,null,null,null,null,null,null,null,null,null,null,null,null,null,""]
[{"$f":"IF('START HERE'!$B$4=0,\"\",'START HERE'!$B$4)","v":""},null,null,null,null,null,null,null,null,null,null,null,null,null,null,null,null,null,""]
[{"$f":"IF('START HERE'!$B$4=0,\"\",'START HERE'!$B$4)","v":""},null,null,null,null,null,null,null,null,null,null,null,null,null,null,null,null,null,""]
[{"$f":"IF('START HERE'!$B$4=0,\"\",'START HERE'!$B$4)","v":""},null,null,null,null,null,null,null,null,null,null,null,null,null,null,null,null,null,""]
[{"$f":"IF('START HERE'!$B$4=0,\"\",'START HERE'!$B$4)","v":""},null,null,null,null,null,null,null,null,null,null,null,null,null,null,null,null,null,""]
[{"$f":"IF('START HERE'!$B$4=0,\"\",'START HERE'!$B$4)","v":""},null,null,null,null,null,null,null,null,null,null,null,null,null,null,null,null,null,""]
[{"$f":"IF('START HERE'!$B$4=0,\"\",'START HERE'!$B$4)","v":""},null,null,null,null,null,null,null,null,null,null,null,null,null,null,null,null,null,""]
[{"$f":"IF('START HERE'!$B$4=0,\"\",'START HERE'!$B$4)","v":""},null,null,null,null,null,null,null,null,null,null,null,null,null,null,null,null,null,""]
[{"$f":"IF('START HERE'!$B$4=0,\"\",'START HERE'!$B$4)","v":""},null,null,null,null,null,null,null,null,null,null,null,null,null,null,null,null,null,""]
[{"$f":"IF('START HERE'!$B$4=0,\"\",'START HERE'!$B$4)","v":""},null,null,null,null,null,null,null,null,null,null,null,null,null,null,null,null,null,""]
[{"$f":"IF('START HERE'!$B$4=0,\"\",'START HERE'!$B$4)","v":""},null,null,null,null,null,null,null,null,null,null,null,null,null,null,null,null,null,""]
[{"$f":"IF('START HERE'!$B$4=0,\"\",'START HERE'!$B$4)","v":""},null,null,null,null,null,null,null,null,null,null,null,null,null,null,null,null,null,""]
[{"$f":"IF('START HERE'!$B$4=0,\"\",'START HERE'!$B$4)","v":""},null,null,null,null,null,null,null,null,null,null,null,null,null,null,null,null,null,""]
[{"$f":"IF('START HERE'!$B$4=0,\"\",'START HERE'!$B$4)","v":""},null,null,null,null,null,null,null,null,null,null,null,null,null,null,null,null,null,""]
[{"$f":"IF('START HERE'!$B$4=0,\"\",'START HERE'!$B$4)","v":""},null,null,null,null,null,null,null,null,null,null,null,null,null,null,null,null,null,""]
[{"$f":"IF('START HERE'!$B$4=0,\"\",'START HERE'!$B$4)","v":""},null,null,null,null,null,null,null,null,null,null,null,null,null,null,null,null,null,""]
[{"$f":"IF('START HERE'!$B$4=0,\"\",'START HERE'!$B$4)","v":""},null,null,null,null,null,null,null,null,null,null,null,null,null,null,null,null,null,""]
[{"$f":"IF('START HERE'!$B$4=0,\"\",'START HERE'!$B$4)","v":""},null,null,null,null,null,null,null,null,null,null,null,null,null,null,null,null,null,""]
[{"$f":"IF('START HERE'!$B$4=0,\"\",'START HERE'!$B$4)","v":""},null,null,null,null,null,null,null,null,null,null,null,null,null,null,null,null,null,""]
[{"$f":"IF('START HERE'!$B$4=0,\"\",'START HERE'!$B$4)","v":""},null,null,null,null,null,null,null,null,null,null,null,null,null,null,null,null,null,""]
[{"$f":"IF('START HERE'!$B$4=0,\"\",'START HERE'!$B$4)","v":""},null,null,null,null,null,null,null,null,null,null,null,null,null,null,null,null,null,""]
[{"$f":"IF('START HERE'!$B$4=0,\"\",'START HERE'!$B$4)","v":""},null,null,null,null,null,null,null,null,null,null,null,null,null,null,null,null,null,""]
[{"$f":"IF('START HERE'!$B$4=0,\"\",'START HERE'!$B$4)","v":""},null,null,null,null,null,null,null,null,null,null,null,null,null,null,null,null,null,""]
[{"$f":"IF('START HERE'!$B$4=0,\"\",'START HERE'!$B$4)","v":""},null,null,null,null,null,null,null,null,null,null,null,null,null,null,null,null,null,""]
[{"$f":"IF('START HERE'!$B$4=0,\"\",'START HERE'!$B$4)","v":""},null,null,null,null,null,null,null,null,null,null,null,null,null,null,null,null,null,""]
[{"$f":"IF('START HERE'!$B$4=0,\"\",'START HERE'!$B$4)","v":""},null,null,null,null,null,null,null,null,null,null,null,null,null,null,null,null,null,""]
[{"$f":"IF('START HERE'!$B$4=0,\"\",'START HERE'!$B$4)","v":""},null,null,null,null,null,null,null,null,null,null,null,null,null,null,null,null,null,""]
[{"$f":"IF('START HERE'!$B$4=0,\"\",'START HERE'!$B$4)","v":""},null,null,null,null,null,null,null,null,null,null,null,null,null,null,null,null,null,""]
[{"$f":"IF('START HERE'!$B$4=0,\"\",'START HERE'!$B$4)","v":""},null,null,null,null,null,null,null,null,null,null,null,null,null,null,null,null,null,""]
[{"$f":"IF('START HERE'!$B$4=0,\"\",'START HERE'!$B$4)","v":""},null,null,null,null,null,null,null,null,null,null,null,null,null,null,null,null,null,""]
[{"$f":"IF('START HERE'!$B$4=0,\"\",'START HERE'!$B$4)","v":""},null,null,null,null,null,null,null,null,null,null,null,null,null,null,null,null,null,""]
[{"$f":"IF('START HERE'!$B$4=0,\"\",'START HERE'!$B$4)","v":""},null,null,null,null,null,null,null,null,null,null,null,null,null,null,null,null,null,""]
[{"$f":"IF('START HERE'!$B$4=0,\"\",'START HERE'!$B$4)","v":""},null,null,null,null,null,null,null,null,null,null,null,null,null,null,null,null,null,""]
[{"$f":"IF('START HERE'!$B$4=0,\"\",'START HERE'!$B$4)","v":""},null,null,null,null,null,null,null,null,null,null,null,null,null,null,null,null,null,""]
[{"$f":"IF('START HERE'!$B$4=0,\"\",'START HERE'!$B$4)","v":""},null,null,null,null,null,null,null,null,null,null,null,null,null,null,null,null,null,""]
[{"$f":"IF('START HERE'!$B$4=0,\"\",'START HERE'!$B$4)","v":""},null,null,null,null,null,null,null,null,null,null,null,null,null,null,null,null,null,""]
[{"$f":"IF('START HERE'!$B$4=0,\"\",'START HERE'!$B$4)","v":""},null,null,null,null,null,null,null,null,null,null,null,null,null,null,null,null,null,""]
[{"$f":"IF('START HERE'!$B$4=0,\"\",'START HERE'!$B$4)","v":""},null,null,null,null,null,null,null,null,null,null,null,null,null,null,null,null,null,""]
[{"$f":"IF('START HERE'!$B$4=0,\"\",'START HERE'!$B$4)","v":""},null,null,null,null,null,null,null,null,null,null,null,null,null,null,null,null,null,""]
[{"$f":"IF('START HERE'!$B$4=0,\"\",'START HERE'!$B$4)","v":""},null,null,null,null,null,null,null,null,null,null,null,null,null,null,null,null,null,""]
[{"$f":"IF('START HERE'!$B$4=0,\"\",'START HERE'!$B$4)","v":""},null,null,null,null,null,null,null,null,null,null,null,null,null,null,null,null,null,""]
[{"$f":"IF('START HERE'!$B$4=0,\"\",'START HERE'!$B$4)","v":""},null,null,null,null,null,null,null,null,null,null,null,null,null,null,null,null,null,""]
[{"$f":"IF('START HERE'!$B$4=0,\"\",'START HERE'!$B$4)","v":""},null,null,null,null,null,null,null,null,null,null,null,null,null,null,null,null,null,""]
[{"$f":"IF('START HERE'!$B$4=0,\"\",'START HERE'!$B$4)","v":""},null,null,null,null,null,null,null,null,null,null,null,null,null,null,null,null,null,""]
[{"$f":"IF('START HERE'!$B$4=0,\"\",'START HERE'!$B$4)","v":""},null,null,null,null,null,null,null,null,null,null,null,null,null,null,null,null,null,""]
[{"$f":"IF('START HERE'!$B$4=0,\"\",'START HERE'!$B$4)","v":""},null,null,null,null,null,null,null,null,null,null,null,null,null,null,null,null,null,{"$f":"IF((R452+Q452+P452)=0,\"\",(R452+Q452+P452))","v":""}]
[{"$f":"IF('START HERE'!$B$4=0,\"\",'START HERE'!$B$4)","v":""},null,null,null,null,null,null,null,null,null,null,null,null,null,null,null,null,null,""]
[{"$f":"IF('START HERE'!$B$4=0,\"\",'START HERE'!$B$4)","v":""},null,null,null,null,null,null,null,null,null,null,null,null,null,null,null,null,null,""]
[{"$f":"IF('START HERE'!$B$4=0,\"\",'START HERE'!$B$4)","v":""},null,null,null,null,null,null,null,null,null,null,null,null,null,null,null,null,null,""]
[{"$f":"IF('START HERE'!$B$4=0,\"\",'START HERE'!$B$4)","v":""},null,null,null,null,null,null,null,null,null,null,null,null,null,null,null,null,null,""]
[{"$f":"IF('START HERE'!$B$4=0,\"\",'START HERE'!$B$4)","v":""},null,null,null,null,null,null,null,null,null,null,null,null,null,null,null,null,null,""]
[{"$f":"IF('START HERE'!$B$4=0,\"\",'START HERE'!$B$4)","v":""},null,null,null,null,null,null,null,null,null,null,null,null,null,null,null,null,null,""]
[{"$f":"IF('START HERE'!$B$4=0,\"\",'START HERE'!$B$4)","v":""},null,null,null,null,null,null,null,null,null,null,null,null,null,null,null,null,null,""]
[{"$f":"IF('START HERE'!$B$4=0,\"\",'START HERE'!$B$4)","v":""},null,null,null,null,null,null,null,null,null,null,null,null,null,null,null,null,null,""]
[{"$f":"IF('START HERE'!$B$4=0,\"\",'START HERE'!$B$4)","v":""},null,null,null,null,null,null,null,null,null,null,null,null,null,null,null,null,null,""]
[{"$f":"IF('START HERE'!$B$4=0,\"\",'START HERE'!$B$4)","v":""},null,null,null,null,null,null,null,null,null,null,null,null,null,null,null,null,null,""]
[{"$f":"IF('START HERE'!$B$4=0,\"\",'START HERE'!$B$4)","v":""},null,null,null,null,null,null,null,null,null,null,null,null,null,null,null,null,null,""]
[{"$f":"IF('START HERE'!$B$4=0,\"\",'START HERE'!$B$4)","v":""},null,null,null,null,null,null,null,null,null,null,null,null,null,null,null,null,null,""]
[{"$f":"IF('START HERE'!$B$4=0,\"\",'START HERE'!$B$4)","v":""},null,null,null,null,null,null,null,null,null,null,null,null,null,null,null,null,null,""]
[{"$f":"IF('START HERE'!$B$4=0,\"\",'START HERE'!$B$4)","v":""},null,null,null,null,null,null,null,null,null,null,null,null,null,null,null,null,null,""]
[{"$f":"IF('START HERE'!$B$4=0,\"\",'START HERE'!$B$4)","v":""},null,null,null,null,null,null,null,null,null,null,null,null,null,null,null,null,null,""]
[{"$f":"IF('START HERE'!$B$4=0,\"\",'START HERE'!$B$4)","v":""},null,null,null,null,null,null,null,null,null,null,null,null,null,null,null,null,null,""]
[{"$f":"IF('START HERE'!$B$4=0,\"\",'START HERE'!$B$4)","v":""},null,null,null,null,null,null,null,null,null,null,null,null,null,null,null,null,null,""]
[{"$f":"IF('START HERE'!$B$4=0,\"\",'START HERE'!$B$4)","v":""},null,null,null,null,null,null,null,null,null,null,null,null,null,null,null,null,null,""]
[{"$f":"IF('START HERE'!$B$4=0,\"\",'START HERE'!$B$4)","v":""},null,null,null,null,null,null,null,null,null,null,null,null,null,null,null,null,null,""]
[{"$f":"IF('START HERE'!$B$4=0,\"\",'START HERE'!$B$4)","v":""},null,null,null,null,null,null,null,null,null,null,null,null,null,null,null,null,null,""]
[{"$f":"IF('START HERE'!$B$4=0,\"\",'START HERE'!$B$4)","v":""},null,null,null,null,null,null,null,null,null,null,null,null,null,null,null,null,null,""]
[{"$f":"IF('START HERE'!$B$4=0,\"\",'START HERE'!$B$4)","v":""},null,null,null,null,null,null,null,null,null,null,null,null,null,null,null,null,null,""]
[{"$f":"IF('START HERE'!$B$4=0,\"\",'START HERE'!$B$4)","v":""},null,null,null,null,null,null,null,null,null,null,null,null,null,null,null,null,null,""]
[{"$f":"IF('START HERE'!$B$4=0,\"\",'START HERE'!$B$4)","v":""},null,null,null,null,null,null,null,null,null,null,null,null,null,null,null,null,null,""]
[{"$f":"IF('START HERE'!$B$4=0,\"\",'START HERE'!$B$4)","v":""},null,null,null,null,null,null,null,null,null,null,null,null,null,null,null,null,null,""]
[{"$f":"IF('START HERE'!$B$4=0,\"\",'START HERE'!$B$4)","v":""},null,null,null,null,null,null,null,null,null,null,null,null,null,null,null,null,null,""]
[{"$f":"IF('START HERE'!$B$4=0,\"\",'START HERE'!$B$4)","v":""},null,null,null,null,null,null,null,null,null,null,null,null,null,null,null,null,null,""]
[{"$f":"IF('START HERE'!$B$4=0,\"\",'START HERE'!$B$4)","v":""},null,null,null,null,null,null,null,null,null,null,null,null,null,null,null,null,null,""]
[{"$f":"IF('START HERE'!$B$4=0,\"\",'START HERE'!$B$4)","v":""},null,null,null,null,null,null,null,null,null,null,null,null,null,null,null,null,null,""]
[{"$f":"IF('START HERE'!$B$4=0,\"\",'START HERE'!$B$4)","v":""},null,null,null,null,null,null,null,null,null,null,null,null,null,null,null,null,null,""]
[{"$f":"IF('START HERE'!$B$4=0,\"\",'START HERE'!$B$4)","v":""},null,null,null,null,null,null,null,null,null,null,null,null,null,null,null,null,null,""]
[{"$f":"IF('START HERE'!$B$4=0,\"\",'START HERE'!$B$4)","v":""},null,null,null,null,null,null,null,null,null,null,null,null,null,null,null,null,null,""]
[{"$f":"IF('START HERE'!$B$4=0,\"\",'START HERE'!$B$4)","v":""},null,null,null,null,null,null,null,null,null,null,null,null,null,null,null,null,null,""]
[{"$f":"IF('START HERE'!$B$4=0,\"\",'START HERE'!$B$4)","v":""},null,null,null,null,null,null,null,null,null,null,null,null,null,null,null,null,null,""]
[{"$f":"IF('START HERE'!$B$4=0,\"\",'START HERE'!$B$4)","v":""},null,null,null,null,null,null,null,null,null,null,null,null,null,null,null,null,null,""]
[{"$f":"IF('START HERE'!$B$4=0,\"\",'START HERE'!$B$4)","v":""},null,null,null,null,null,null,null,null,null,null,null,null,null,null,null,null,null,""]
[{"$f":"IF('START HERE'!$B$4=0,\"\",'START HERE'!$B$4)","v":""},null,null,null,null,null,null,null,null,null,null,null,null,null,null,null,null,null,""]
[{"$f":"IF('START HERE'!$B$4=0,\"\",'START HERE'!$B$4)","v":""},null,null,null,null,null,null,null,null,null,null,null,null,null,null,null,null,null,""]
[{"$f":"IF('START HERE'!$B$4=0,\"\",'START HERE'!$B$4)","v":""},null,null,null,null,null,null,null,null,null,null,null,null,null,null,null,null,null,""]
[{"$f":"IF('START HERE'!$B$4=0,\"\",'START HERE'!$B$4)","v":""},null,null,null,null,null,null,null,null,null,null,null,null,null,null,null,null,null,""]
[{"$f":"IF('START HERE'!$B$4=0,\"\",'START HERE'!$B$4)","v":""},null,null,null,null,null,null,null,null,null,null,null,null,null,null,null,null,null,""]
[{"$f":"IF('START HERE'!$B$4=0,\"\",'START HERE'!$B$4)","v":""},null,null,null,null,null,null,null,null,null,null,null,null,null,null,null,null,null,""]
[{"$f":"IF('START HERE'!$B$4=0,\"\",'START HERE'!$B$4)","v":""},null,null,null,null,null,null,null,null,null,null,null,null,null,null,null,null,null,""]
[{"$f":"IF('START HERE'!$B$4=0,\"\",'START HERE'!$B$4)","v":""},null,null,null,null,null,null,null,null,null,null,null,null,null,null,null,null,null,""]
[{"$f":"IF('START HERE'!$B$4=0,\"\",'START HERE'!$B$4)","v":""},null,null,null,null,null,null,null,null,null,null,null,null,null,null,null,null,null,""]
[{"$f":"IF('START HERE'!$B$4=0,\"\",'START HERE'!$B$4)","v":""},null,null,null,null,null,null,null,null,null,null,null,null,null,null,null,null,null,""]
[{"$f":"IF('START HERE'!$B$4=0,\"\",'START HERE'!$B$4)","v":""},null,null,null,null,null,null,null,null,null,null,null,null,null,null,null,null,null,""]
[{"$f":"IF('START HERE'!$B$4=0,\"\",'START HERE'!$B$4)","v":""},null,null,null,null,null,null,null,null,null,null,null,null,null,null,null,null,null,""]
[{"$f":"IF('START HERE'!$B$4=0,\"\",'START HERE'!$B$4)","v":""},null,null,null,null,null,null,null,null,null,null,null,null,null,null,null,null,null,""]
[{"$f":"IF('START HERE'!$B$4=0,\"\",'START HERE'!$B$4)","v":""},null,null,null,null,null,null,null,null,null,null,null,null,null,null,null,null,null,""]

{"sheet":"Table B","index":2,"n_rows":502,"n_cols":22,"rows_kept":502,"cut":false,"hidden":false,"merged":[]}
["Table B: Candidate Sites Identified to be Rezoned to Accommodate Shortfall Housing Need, Table Starts in Cell A2"]
["Jurisdiction Name","Site Address/Intersection","5 Digit ZIP Code","Assessor Parcel Number","Very Low-Income","Low-Income","Moderate-Income","Above Moderate-Income","Type of Shortfall\n","Parcel Size\n(Acres)","Current General Plan Designation","Current Zoning","Proposed General Plan (GP) Designation","Proposed Zoning","Minimum Density Allowed ","Maximum Density Allowed","Total Capacity","Vacant/\nNonvacant","Description of Existing Uses","Optional Information1","Optional Information2","Optional Information3"]
[{"$f":"IF('START HERE'!$B$4=0,\"\",'START HERE'!$B$4)","v":""}]
[{"$f":"IF('START HERE'!$B$4=0,\"\",'START HERE'!$B$4)","v":""}]
[{"$f":"IF('START HERE'!$B$4=0,\"\",'START HERE'!$B$4)","v":""}]
[{"$f":"IF('START HERE'!$B$4=0,\"\",'START HERE'!$B$4)","v":""}]
[{"$f":"IF('START HERE'!$B$4=0,\"\",'START HERE'!$B$4)","v":""}]
[{"$f":"IF('START HERE'!$B$4=0,\"\",'START HERE'!$B$4)","v":""}]
[{"$f":"IF('START HERE'!$B$4=0,\"\",'START HERE'!$B$4)","v":""}]
[{"$f":"IF('START HERE'!$B$4=0,\"\",'START HERE'!$B$4)","v":""}]
[{"$f":"IF('START HERE'!$B$4=0,\"\",'START HERE'!$B$4)","v":""}]
[{"$f":"IF('START HERE'!$B$4=0,\"\",'START HERE'!$B$4)","v":""}]
[{"$f":"IF('START HERE'!$B$4=0,\"\",'START HERE'!$B$4)","v":""}]
[{"$f":"IF('START HERE'!$B$4=0,\"\",'START HERE'!$B$4)","v":""}]
[{"$f":"IF('START HERE'!$B$4=0,\"\",'START HERE'!$B$4)","v":""}]
[{"$f":"IF('START HERE'!$B$4=0,\"\",'START HERE'!$B$4)","v":""}]
[{"$f":"IF('START HERE'!$B$4=0,\"\",'START HERE'!$B$4)","v":""}]
[{"$f":"IF('START HERE'!$B$4=0,\"\",'START HERE'!$B$4)","v":""}]
[{"$f":"IF('START HERE'!$B$4=0,\"\",'START HERE'!$B$4)","v":""}]
[{"$f":"IF('START HERE'!$B$4=0,\"\",'START HERE'!$B$4)","v":""}]
[{"$f":"IF('START HERE'!$B$4=0,\"\",'START HERE'!$B$4)","v":""}]
[{"$f":"IF('START HERE'!$B$4=0,\"\",'START HERE'!$B$4)","v":""}]
[{"$f":"IF('START HERE'!$B$4=0,\"\",'START HERE'!$B$4)","v":""}]
[{"$f":"IF('START HERE'!$B$4=0,\"\",'START HERE'!$B$4)","v":""}]
[{"$f":"IF('START HERE'!$B$4=0,\"\",'START HERE'!$B$4)","v":""}]
[{"$f":"IF('START HERE'!$B$4=0,\"\",'START HERE'!$B$4)","v":""}]
[{"$f":"IF('START HERE'!$B$4=0,\"\",'START HERE'!$B$4)","v":""}]
[{"$f":"IF('START HERE'!$B$4=0,\"\",'START HERE'!$B$4)","v":""}]
[{"$f":"IF('START HERE'!$B$4=0,\"\",'START HERE'!$B$4)","v":""}]
[{"$f":"IF('START HERE'!$B$4=0,\"\",'START HERE'!$B$4)","v":""}]
[{"$f":"IF('START HERE'!$B$4=0,\"\",'START HERE'!$B$4)","v":""}]
[{"$f":"IF('START HERE'!$B$4=0,\"\",'START HERE'!$B$4)","v":""}]
[{"$f":"IF('START HERE'!$B$4=0,\"\",'START HERE'!$B$4)","v":""}]
[{"$f":"IF('START HERE'!$B$4=0,\"\",'START HERE'!$B$4)","v":""}]
[{"$f":"IF('START HERE'!$B$4=0,\"\",'START HERE'!$B$4)","v":""}]
[{"$f":"IF('START HERE'!$B$4=0,\"\",'START HERE'!$B$4)","v":""}]
[{"$f":"IF('START HERE'!$B$4=0,\"\",'START HERE'!$B$4)","v":""}]
[{"$f":"IF('START HERE'!$B$4=0,\"\",'START HERE'!$B$4)","v":""}]
[{"$f":"IF('START HERE'!$B$4=0,\"\",'START HERE'!$B$4)","v":""}]
[{"$f":"IF('START HERE'!$B$4=0,\"\",'START HERE'!$B$4)","v":""}]
[{"$f":"IF('START HERE'!$B$4=0,\"\",'START HERE'!$B$4)","v":""}]
[{"$f":"IF('START HERE'!$B$4=0,\"\",'START HERE'!$B$4)","v":""}]
[{"$f":"IF('START HERE'!$B$4=0,\"\",'START HERE'!$B$4)","v":""}]
[{"$f":"IF('START HERE'!$B$4=0,\"\",'START HERE'!$B$4)","v":""}]
[{"$f":"IF('START HERE'!$B$4=0,\"\",'START HERE'!$B$4)","v":""}]
[{"$f":"IF('START HERE'!$B$4=0,\"\",'START HERE'!$B$4)","v":""}]
[{"$f":"IF('START HERE'!$B$4=0,\"\",'START HERE'!$B$4)","v":""}]
[{"$f":"IF('START HERE'!$B$4=0,\"\",'START HERE'!$B$4)","v":""}]
[{"$f":"IF('START HERE'!$B$4=0,\"\",'START HERE'!$B$4)","v":""}]
[{"$f":"IF('START HERE'!$B$4=0,\"\",'START HERE'!$B$4)","v":""}]
[{"$f":"IF('START HERE'!$B$4=0,\"\",'START HERE'!$B$4)","v":""}]
[{"$f":"IF('START HERE'!$B$4=0,\"\",'START HERE'!$B$4)","v":""}]
[{"$f":"IF('START HERE'!$B$4=0,\"\",'START HERE'!$B$4)","v":""}]
[{"$f":"IF('START HERE'!$B$4=0,\"\",'START HERE'!$B$4)","v":""}]
[{"$f":"IF('START HERE'!$B$4=0,\"\",'START HERE'!$B$4)","v":""}]
[{"$f":"IF('START HERE'!$B$4=0,\"\",'START HERE'!$B$4)","v":""}]
[{"$f":"IF('START HERE'!$B$4=0,\"\",'START HERE'!$B$4)","v":""}]
[{"$f":"IF('START HERE'!$B$4=0,\"\",'START HERE'!$B$4)","v":""}]
[{"$f":"IF('START HERE'!$B$4=0,\"\",'START HERE'!$B$4)","v":""}]
[{"$f":"IF('START HERE'!$B$4=0,\"\",'START HERE'!$B$4)","v":""}]
[{"$f":"IF('START HERE'!$B$4=0,\"\",'START HERE'!$B$4)","v":""}]
[{"$f":"IF('START HERE'!$B$4=0,\"\",'START HERE'!$B$4)","v":""}]
[{"$f":"IF('START HERE'!$B$4=0,\"\",'START HERE'!$B$4)","v":""}]
[{"$f":"IF('START HERE'!$B$4=0,\"\",'START HERE'!$B$4)","v":""}]
[{"$f":"IF('START HERE'!$B$4=0,\"\",'START HERE'!$B$4)","v":""}]
[{"$f":"IF('START HERE'!$B$4=0,\"\",'START HERE'!$B$4)","v":""}]
[{"$f":"IF('START HERE'!$B$4=0,\"\",'START HERE'!$B$4)","v":""}]
[{"$f":"IF('START HERE'!$B$4=0,\"\",'START HERE'!$B$4)","v":""}]
[{"$f":"IF('START HERE'!$B$4=0,\"\",'START HERE'!$B$4)","v":""}]
[{"$f":"IF('START HERE'!$B$4=0,\"\",'START HERE'!$B$4)","v":""}]
[{"$f":"IF('START HERE'!$B$4=0,\"\",'START HERE'!$B$4)","v":""}]
[{"$f":"IF('START HERE'!$B$4=0,\"\",'START HERE'!$B$4)","v":""}]
[{"$f":"IF('START HERE'!$B$4=0,\"\",'START HERE'!$B$4)","v":""}]
[{"$f":"IF('START HERE'!$B$4=0,\"\",'START HERE'!$B$4)","v":""}]
[{"$f":"IF('START HERE'!$B$4=0,\"\",'START HERE'!$B$4)","v":""}]
[{"$f":"IF('START HERE'!$B$4=0,\"\",'START HERE'!$B$4)","v":""}]
[{"$f":"IF('START HERE'!$B$4=0,\"\",'START HERE'!$B$4)","v":""}]
[{"$f":"IF('START HERE'!$B$4=0,\"\",'START HERE'!$B$4)","v":""}]
[{"$f":"IF('START HERE'!$B$4=0,\"\",'START HERE'!$B$4)","v":""}]
[{"$f":"IF('START HERE'!$B$4=0,\"\",'START HERE'!$B$4)","v":""}]
[{"$f":"IF('START HERE'!$B$4=0,\"\",'START HERE'!$B$4)","v":""}]
[{"$f":"IF('START HERE'!$B$4=0,\"\",'START HERE'!$B$4)","v":""}]
[{"$f":"IF('START HERE'!$B$4=0,\"\",'START HERE'!$B$4)","v":""}]
[{"$f":"IF('START HERE'!$B$4=0,\"\",'START HERE'!$B$4)","v":""}]
[{"$f":"IF('START HERE'!$B$4=0,\"\",'START HERE'!$B$4)","v":""}]
[{"$f":"IF('START HERE'!$B$4=0,\"\",'START HERE'!$B$4)","v":""}]
[{"$f":"IF('START HERE'!$B$4=0,\"\",'START HERE'!$B$4)","v":""}]
[{"$f":"IF('START HERE'!$B$4=0,\"\",'START HERE'!$B$4)","v":""}]
[{"$f":"IF('START HERE'!$B$4=0,\"\",'START HERE'!$B$4)","v":""}]
[{"$f":"IF('START HERE'!$B$4=0,\"\",'START HERE'!$B$4)","v":""}]
[{"$f":"IF('START HERE'!$B$4=0,\"\",'START HERE'!$B$4)","v":""}]
[{"$f":"IF('START HERE'!$B$4=0,\"\",'START HERE'!$B$4)","v":""}]
[{"$f":"IF('START HERE'!$B$4=0,\"\",'START HERE'!$B$4)","v":""}]
[{"$f":"IF('START HERE'!$B$4=0,\"\",'START HERE'!$B$4)","v":""}]
[{"$f":"IF('START HERE'!$B$4=0,\"\",'START HERE'!$B$4)","v":""}]
[{"$f":"IF('START HERE'!$B$4=0,\"\",'START HERE'!$B$4)","v":""}]
[{"$f":"IF('START HERE'!$B$4=0,\"\",'START HERE'!$B$4)","v":""}]
[{"$f":"IF('START HERE'!$B$4=0,\"\",'START HERE'!$B$4)","v":""}]
[{"$f":"IF('START HERE'!$B$4=0,\"\",'START HERE'!$B$4)","v":""}]
[{"$f":"IF('START HERE'!$B$4=0,\"\",'START HERE'!$B$4)","v":""}]
[{"$f":"IF('START HERE'!$B$4=0,\"\",'START HERE'!$B$4)","v":""}]
[{"$f":"IF('START HERE'!$B$4=0,\"\",'START HERE'!$B$4)","v":""}]
[{"$f":"IF('START HERE'!$B$4=0,\"\",'START HERE'!$B$4)","v":""}]
[{"$f":"IF('START HERE'!$B$4=0,\"\",'START HERE'!$B$4)","v":""}]
[{"$f":"IF('START HERE'!$B$4=0,\"\",'START HERE'!$B$4)","v":""}]
[{"$f":"IF('START HERE'!$B$4=0,\"\",'START HERE'!$B$4)","v":""}]
[{"$f":"IF('START HERE'!$B$4=0,\"\",'START HERE'!$B$4)","v":""}]
[{"$f":"IF('START HERE'!$B$4=0,\"\",'START HERE'!$B$4)","v":""}]
[{"$f":"IF('START HERE'!$B$4=0,\"\",'START HERE'!$B$4)","v":""}]
[{"$f":"IF('START HERE'!$B$4=0,\"\",'START HERE'!$B$4)","v":""}]
[{"$f":"IF('START HERE'!$B$4=0,\"\",'START HERE'!$B$4)","v":""}]
[{"$f":"IF('START HERE'!$B$4=0,\"\",'START HERE'!$B$4)","v":""}]
[{"$f":"IF('START HERE'!$B$4=0,\"\",'START HERE'!$B$4)","v":""}]
[{"$f":"IF('START HERE'!$B$4=0,\"\",'START HERE'!$B$4)","v":""}]
[{"$f":"IF('START HERE'!$B$4=0,\"\",'START HERE'!$B$4)","v":""}]
[{"$f":"IF('START HERE'!$B$4=0,\"\",'START HERE'!$B$4)","v":""}]
[{"$f":"IF('START HERE'!$B$4=0,\"\",'START HERE'!$B$4)","v":""}]
[{"$f":"IF('START HERE'!$B$4=0,\"\",'START HERE'!$B$4)","v":""}]
[{"$f":"IF('START HERE'!$B$4=0,\"\",'START HERE'!$B$4)","v":""}]
[{"$f":"IF('START HERE'!$B$4=0,\"\",'START HERE'!$B$4)","v":""}]
[{"$f":"IF('START HERE'!$B$4=0,\"\",'START HERE'!$B$4)","v":""}]
[{"$f":"IF('START HERE'!$B$4=0,\"\",'START HERE'!$B$4)","v":""}]
[{"$f":"IF('START HERE'!$B$4=0,\"\",'START HERE'!$B$4)","v":""}]
[{"$f":"IF('START HERE'!$B$4=0,\"\",'START HERE'!$B$4)","v":""}]
[{"$f":"IF('START HERE'!$B$4=0,\"\",'START HERE'!$B$4)","v":""}]
[{"$f":"IF('START HERE'!$B$4=0,\"\",'START HERE'!$B$4)","v":""}]
[{"$f":"IF('START HERE'!$B$4=0,\"\",'START HERE'!$B$4)","v":""}]
[{"$f":"IF('START HERE'!$B$4=0,\"\",'START HERE'!$B$4)","v":""}]
[{"$f":"IF('START HERE'!$B$4=0,\"\",'START HERE'!$B$4)","v":""}]
[{"$f":"IF('START HERE'!$B$4=0,\"\",'START HERE'!$B$4)","v":""}]
[{"$f":"IF('START HERE'!$B$4=0,\"\",'START HERE'!$B$4)","v":""}]
[{"$f":"IF('START HERE'!$B$4=0,\"\",'START HERE'!$B$4)","v":""}]
[{"$f":"IF('START HERE'!$B$4=0,\"\",'START HERE'!$B$4)","v":""}]
[{"$f":"IF('START HERE'!$B$4=0,\"\",'START HERE'!$B$4)","v":""}]
[{"$f":"IF('START HERE'!$B$4=0,\"\",'START HERE'!$B$4)","v":""}]
[{"$f":"IF('START HERE'!$B$4=0,\"\",'START HERE'!$B$4)","v":""}]
[{"$f":"IF('START HERE'!$B$4=0,\"\",'START HERE'!$B$4)","v":""}]
[{"$f":"IF('START HERE'!$B$4=0,\"\",'START HERE'!$B$4)","v":""}]
[{"$f":"IF('START HERE'!$B$4=0,\"\",'START HERE'!$B$4)","v":""}]
[{"$f":"IF('START HERE'!$B$4=0,\"\",'START HERE'!$B$4)","v":""}]
[{"$f":"IF('START HERE'!$B$4=0,\"\",'START HERE'!$B$4)","v":""}]
[{"$f":"IF('START HERE'!$B$4=0,\"\",'START HERE'!$B$4)","v":""}]
[{"$f":"IF('START HERE'!$B$4=0,\"\",'START HERE'!$B$4)","v":""}]
[{"$f":"IF('START HERE'!$B$4=0,\"\",'START HERE'!$B$4)","v":""}]
[{"$f":"IF('START HERE'!$B$4=0,\"\",'START HERE'!$B$4)","v":""}]
[{"$f":"IF('START HERE'!$B$4=0,\"\",'START HERE'!$B$4)","v":""}]
[{"$f":"IF('START HERE'!$B$4=0,\"\",'START HERE'!$B$4)","v":""}]
[{"$f":"IF('START HERE'!$B$4=0,\"\",'START HERE'!$B$4)","v":""}]
[{"$f":"IF('START HERE'!$B$4=0,\"\",'START HERE'!$B$4)","v":""}]
[{"$f":"IF('START HERE'!$B$4=0,\"\",'START HERE'!$B$4)","v":""}]
[{"$f":"IF('START HERE'!$B$4=0,\"\",'START HERE'!$B$4)","v":""}]
[{"$f":"IF('START HERE'!$B$4=0,\"\",'START HERE'!$B$4)","v":""}]
[{"$f":"IF('START HERE'!$B$4=0,\"\",'START HERE'!$B$4)","v":""}]
[{"$f":"IF('START HERE'!$B$4=0,\"\",'START HERE'!$B$4)","v":""}]
[{"$f":"IF('START HERE'!$B$4=0,\"\",'START HERE'!$B$4)","v":""}]
[{"$f":"IF('START HERE'!$B$4=0,\"\",'START HERE'!$B$4)","v":""}]
[{"$f":"IF('START HERE'!$B$4=0,\"\",'START HERE'!$B$4)","v":""}]
[{"$f":"IF('START HERE'!$B$4=0,\"\",'START HERE'!$B$4)","v":""}]
[{"$f":"IF('START HERE'!$B$4=0,\"\",'START HERE'!$B$4)","v":""}]
[{"$f":"IF('START HERE'!$B$4=0,\"\",'START HERE'!$B$4)","v":""}]
[{"$f":"IF('START HERE'!$B$4=0,\"\",'START HERE'!$B$4)","v":""}]
[{"$f":"IF('START HERE'!$B$4=0,\"\",'START HERE'!$B$4)","v":""}]
[{"$f":"IF('START HERE'!$B$4=0,\"\",'START HERE'!$B$4)","v":""}]
[{"$f":"IF('START HERE'!$B$4=0,\"\",'START HERE'!$B$4)","v":""}]
[{"$f":"IF('START HERE'!$B$4=0,\"\",'START HERE'!$B$4)","v":""}]
[{"$f":"IF('START HERE'!$B$4=0,\"\",'START HERE'!$B$4)","v":""}]
[{"$f":"IF('START HERE'!$B$4=0,\"\",'START HERE'!$B$4)","v":""}]
[{"$f":"IF('START HERE'!$B$4=0,\"\",'START HERE'!$B$4)","v":""}]
[{"$f":"IF('START HERE'!$B$4=0,\"\",'START HERE'!$B$4)","v":""}]
[{"$f":"IF('START HERE'!$B$4=0,\"\",'START HERE'!$B$4)","v":""}]
[{"$f":"IF('START HERE'!$B$4=0,\"\",'START HERE'!$B$4)","v":""}]
[{"$f":"IF('START HERE'!$B$4=0,\"\",'START HERE'!$B$4)","v":""}]
[{"$f":"IF('START HERE'!$B$4=0,\"\",'START HERE'!$B$4)","v":""}]
[{"$f":"IF('START HERE'!$B$4=0,\"\",'START HERE'!$B$4)","v":""}]
[{"$f":"IF('START HERE'!$B$4=0,\"\",'START HERE'!$B$4)","v":""}]
[{"$f":"IF('START HERE'!$B$4=0,\"\",'START HERE'!$B$4)","v":""}]
[{"$f":"IF('START HERE'!$B$4=0,\"\",'START HERE'!$B$4)","v":""}]
[{"$f":"IF('START HERE'!$B$4=0,\"\",'START HERE'!$B$4)","v":""}]
[{"$f":"IF('START HERE'!$B$4=0,\"\",'START HERE'!$B$4)","v":""}]
[{"$f":"IF('START HERE'!$B$4=0,\"\",'START HERE'!$B$4)","v":""}]
[{"$f":"IF('START HERE'!$B$4=0,\"\",'START HERE'!$B$4)","v":""}]
[{"$f":"IF('START HERE'!$B$4=0,\"\",'START HERE'!$B$4)","v":""}]
[{"$f":"IF('START HERE'!$B$4=0,\"\",'START HERE'!$B$4)","v":""}]
[{"$f":"IF('START HERE'!$B$4=0,\"\",'START HERE'!$B$4)","v":""}]
[{"$f":"IF('START HERE'!$B$4=0,\"\",'START HERE'!$B$4)","v":""}]
[{"$f":"IF('START HERE'!$B$4=0,\"\",'START HERE'!$B$4)","v":""}]
[{"$f":"IF('START HERE'!$B$4=0,\"\",'START HERE'!$B$4)","v":""}]
[{"$f":"IF('START HERE'!$B$4=0,\"\",'START HERE'!$B$4)","v":""}]
[{"$f":"IF('START HERE'!$B$4=0,\"\",'START HERE'!$B$4)","v":""}]
[{"$f":"IF('START HERE'!$B$4=0,\"\",'START HERE'!$B$4)","v":""}]
[{"$f":"IF('START HERE'!$B$4=0,\"\",'START HERE'!$B$4)","v":""}]
[{"$f":"IF('START HERE'!$B$4=0,\"\",'START HERE'!$B$4)","v":""}]
[{"$f":"IF('START HERE'!$B$4=0,\"\",'START HERE'!$B$4)","v":""}]
[{"$f":"IF('START HERE'!$B$4=0,\"\",'START HERE'!$B$4)","v":""}]
[{"$f":"IF('START HERE'!$B$4=0,\"\",'START HERE'!$B$4)","v":""}]
[{"$f":"IF('START HERE'!$B$4=0,\"\",'START HERE'!$B$4)","v":""}]
[{"$f":"IF('START HERE'!$B$4=0,\"\",'START HERE'!$B$4)","v":""}]
[{"$f":"IF('START HERE'!$B$4=0,\"\",'START HERE'!$B$4)","v":""}]
[{"$f":"IF('START HERE'!$B$4=0,\"\",'START HERE'!$B$4)","v":""}]
[{"$f":"IF('START HERE'!$B$4=0,\"\",'START HERE'!$B$4)","v":""}]
[{"$f":"IF('START HERE'!$B$4=0,\"\",'START HERE'!$B$4)","v":""}]
[{"$f":"IF('START HERE'!$B$4=0,\"\",'START HERE'!$B$4)","v":""}]
[{"$f":"IF('START HERE'!$B$4=0,\"\",'START HERE'!$B$4)","v":""}]
[{"$f":"IF('START HERE'!$B$4=0,\"\",'START HERE'!$B$4)","v":""}]
[{"$f":"IF('START HERE'!$B$4=0,\"\",'START HERE'!$B$4)","v":""}]
[{"$f":"IF('START HERE'!$B$4=0,\"\",'START HERE'!$B$4)","v":""}]
[{"$f":"IF('START HERE'!$B$4=0,\"\",'START HERE'!$B$4)","v":""}]
[{"$f":"IF('START HERE'!$B$4=0,\"\",'START HERE'!$B$4)","v":""}]
[{"$f":"IF('START HERE'!$B$4=0,\"\",'START HERE'!$B$4)","v":""}]
[{"$f":"IF('START HERE'!$B$4=0,\"\",'START HERE'!$B$4)","v":""}]
[{"$f":"IF('START HERE'!$B$4=0,\"\",'START HERE'!$B$4)","v":""}]
[{"$f":"IF('START HERE'!$B$4=0,\"\",'START HERE'!$B$4)","v":""}]
[{"$f":"IF('START HERE'!$B$4=0,\"\",'START HERE'!$B$4)","v":""}]
[{"$f":"IF('START HERE'!$B$4=0,\"\",'START HERE'!$B$4)","v":""}]
[{"$f":"IF('START HERE'!$B$4=0,\"\",'START HERE'!$B$4)","v":""}]
[{"$f":"IF('START HERE'!$B$4=0,\"\",'START HERE'!$B$4)","v":""}]
[{"$f":"IF('START HERE'!$B$4=0,\"\",'START HERE'!$B$4)","v":""}]
[{"$f":"IF('START HERE'!$B$4=0,\"\",'START HERE'!$B$4)","v":""}]
[{"$f":"IF('START HERE'!$B$4=0,\"\",'START HERE'!$B$4)","v":""}]
[{"$f":"IF('START HERE'!$B$4=0,\"\",'START HERE'!$B$4)","v":""}]
[{"$f":"IF('START HERE'!$B$4=0,\"\",'START HERE'!$B$4)","v":""}]
[{"$f":"IF('START HERE'!$B$4=0,\"\",'START HERE'!$B$4)","v":""}]
[{"$f":"IF('START HERE'!$B$4=0,\"\",'START HERE'!$B$4)","v":""}]
[{"$f":"IF('START HERE'!$B$4=0,\"\",'START HERE'!$B$4)","v":""}]
[{"$f":"IF('START HERE'!$B$4=0,\"\",'START HERE'!$B$4)","v":""}]
[{"$f":"IF('START HERE'!$B$4=0,\"\",'START HERE'!$B$4)","v":""}]
[{"$f":"IF('START HERE'!$B$4=0,\"\",'START HERE'!$B$4)","v":""}]
[{"$f":"IF('START HERE'!$B$4=0,\"\",'START HERE'!$B$4)","v":""}]
[{"$f":"IF('START HERE'!$B$4=0,\"\",'START HERE'!$B$4)","v":""}]
[{"$f":"IF('START HERE'!$B$4=0,\"\",'START HERE'!$B$4)","v":""}]
[{"$f":"IF('START HERE'!$B$4=0,\"\",'START HERE'!$B$4)","v":""}]
[{"$f":"IF('START HERE'!$B$4=0,\"\",'START HERE'!$B$4)","v":""}]
[{"$f":"IF('START HERE'!$B$4=0,\"\",'START HERE'!$B$4)","v":""}]
[{"$f":"IF('START HERE'!$B$4=0,\"\",'START HERE'!$B$4)","v":""}]
[{"$f":"IF('START HERE'!$B$4=0,\"\",'START HERE'!$B$4)","v":""}]
[{"$f":"IF('START HERE'!$B$4=0,\"\",'START HERE'!$B$4)","v":""}]
[{"$f":"IF('START HERE'!$B$4=0,\"\",'START HERE'!$B$4)","v":""}]
[{"$f":"IF('START HERE'!$B$4=0,\"\",'START HERE'!$B$4)","v":""}]
[{"$f":"IF('START HERE'!$B$4=0,\"\",'START HERE'!$B$4)","v":""}]
[{"$f":"IF('START HERE'!$B$4=0,\"\",'START HERE'!$B$4)","v":""}]
[{"$f":"IF('START HERE'!$B$4=0,\"\",'START HERE'!$B$4)","v":""}]
[{"$f":"IF('START HERE'!$B$4=0,\"\",'START HERE'!$B$4)","v":""}]
[{"$f":"IF('START HERE'!$B$4=0,\"\",'START HERE'!$B$4)","v":""}]
[{"$f":"IF('START HERE'!$B$4=0,\"\",'START HERE'!$B$4)","v":""}]
[{"$f":"IF('START HERE'!$B$4=0,\"\",'START HERE'!$B$4)","v":""}]
[{"$f":"IF('START HERE'!$B$4=0,\"\",'START HERE'!$B$4)","v":""}]
[{"$f":"IF('START HERE'!$B$4=0,\"\",'START HERE'!$B$4)","v":""}]
[{"$f":"IF('START HERE'!$B$4=0,\"\",'START HERE'!$B$4)","v":""}]
[{"$f":"IF('START HERE'!$B$4=0,\"\",'START HERE'!$B$4)","v":""}]
[{"$f":"IF('START HERE'!$B$4=0,\"\",'START HERE'!$B$4)","v":""}]
[{"$f":"IF('START HERE'!$B$4=0,\"\",'START HERE'!$B$4)","v":""}]
[{"$f":"IF('START HERE'!$B$4=0,\"\",'START HERE'!$B$4)","v":""}]
[{"$f":"IF('START HERE'!$B$4=0,\"\",'START HERE'!$B$4)","v":""}]
[{"$f":"IF('START HERE'!$B$4=0,\"\",'START HERE'!$B$4)","v":""}]
[{"$f":"IF('START HERE'!$B$4=0,\"\",'START HERE'!$B$4)","v":""}]
[{"$f":"IF('START HERE'!$B$4=0,\"\",'START HERE'!$B$4)","v":""}]
[{"$f":"IF('START HERE'!$B$4=0,\"\",'START HERE'!$B$4)","v":""}]
[{"$f":"IF('START HERE'!$B$4=0,\"\",'START HERE'!$B$4)","v":""}]
[{"$f":"IF('START HERE'!$B$4=0,\"\",'START HERE'!$B$4)","v":""}]
[{"$f":"IF('START HERE'!$B$4=0,\"\",'START HERE'!$B$4)","v":""}]
[{"$f":"IF('START HERE'!$B$4=0,\"\",'START HERE'!$B$4)","v":""}]
[{"$f":"IF('START HERE'!$B$4=0,\"\",'START HERE'!$B$4)","v":""}]
[{"$f":"IF('START HERE'!$B$4=0,\"\",'START HERE'!$B$4)","v":""}]
[{"$f":"IF('START HERE'!$B$4=0,\"\",'START HERE'!$B$4)","v":""}]
[{"$f":"IF('START HERE'!$B$4=0,\"\",'START HERE'!$B$4)","v":""}]
[{"$f":"IF('START HERE'!$B$4=0,\"\",'START HERE'!$B$4)","v":""}]
[{"$f":"IF('START HERE'!$B$4=0,\"\",'START HERE'!$B$4)","v":""}]
[{"$f":"IF('START HERE'!$B$4=0,\"\",'START HERE'!$B$4)","v":""}]
[{"$f":"IF('START HERE'!$B$4=0,\"\",'START HERE'!$B$4)","v":""}]
[{"$f":"IF('START HERE'!$B$4=0,\"\",'START HERE'!$B$4)","v":""}]
[{"$f":"IF('START HERE'!$B$4=0,\"\",'START HERE'!$B$4)","v":""}]
[{"$f":"IF('START HERE'!$B$4=0,\"\",'START HERE'!$B$4)","v":""}]
[{"$f":"IF('START HERE'!$B$4=0,\"\",'START HERE'!$B$4)","v":""}]
[{"$f":"IF('START HERE'!$B$4=0,\"\",'START HERE'!$B$4)","v":""}]
[{"$f":"IF('START HERE'!$B$4=0,\"\",'START HERE'!$B$4)","v":""}]
[{"$f":"IF('START HERE'!$B$4=0,\"\",'START HERE'!$B$4)","v":""}]
[{"$f":"IF('START HERE'!$B$4=0,\"\",'START HERE'!$B$4)","v":""}]
[{"$f":"IF('START HERE'!$B$4=0,\"\",'START HERE'!$B$4)","v":""}]
[{"$f":"IF('START HERE'!$B$4=0,\"\",'START HERE'!$B$4)","v":""}]
[{"$f":"IF('START HERE'!$B$4=0,\"\",'START HERE'!$B$4)","v":""}]
[{"$f":"IF('START HERE'!$B$4=0,\"\",'START HERE'!$B$4)","v":""}]
[{"$f":"IF('START HERE'!$B$4=0,\"\",'START HERE'!$B$4)","v":""}]
[{"$f":"IF('START HERE'!$B$4=0,\"\",'START HERE'!$B$4)","v":""}]
[{"$f":"IF('START HERE'!$B$4=0,\"\",'START HERE'!$B$4)","v":""}]
[{"$f":"IF('START HERE'!$B$4=0,\"\",'START HERE'!$B$4)","v":""}]
[{"$f":"IF('START HERE'!$B$4=0,\"\",'START HERE'!$B$4)","v":""}]
[{"$f":"IF('START HERE'!$B$4=0,\"\",'START HERE'!$B$4)","v":""}]
[{"$f":"IF('START HERE'!$B$4=0,\"\",'START HERE'!$B$4)","v":""}]
[{"$f":"IF('START HERE'!$B$4=0,\"\",'START HERE'!$B$4)","v":""}]
[{"$f":"IF('START HERE'!$B$4=0,\"\",'START HERE'!$B$4)","v":""}]
[{"$f":"IF('START HERE'!$B$4=0,\"\",'START HERE'!$B$4)","v":""}]
[{"$f":"IF('START HERE'!$B$4=0,\"\",'START HERE'!$B$4)","v":""}]
[{"$f":"IF('START HERE'!$B$4=0,\"\",'START HERE'!$B$4)","v":""}]
[{"$f":"IF('START HERE'!$B$4=0,\"\",'START HERE'!$B$4)","v":""}]
[{"$f":"IF('START HERE'!$B$4=0,\"\",'START HERE'!$B$4)","v":""}]
[{"$f":"IF('START HERE'!$B$4=0,\"\",'START HERE'!$B$4)","v":""}]
[{"$f":"IF('START HERE'!$B$4=0,\"\",'START HERE'!$B$4)","v":""}]
[{"$f":"IF('START HERE'!$B$4=0,\"\",'START HERE'!$B$4)","v":""}]
[{"$f":"IF('START HERE'!$B$4=0,\"\",'START HERE'!$B$4)","v":""}]
[{"$f":"IF('START HERE'!$B$4=0,\"\",'START HERE'!$B$4)","v":""}]
[{"$f":"IF('START HERE'!$B$4=0,\"\",'START HERE'!$B$4)","v":""}]
[{"$f":"IF('START HERE'!$B$4=0,\"\",'START HERE'!$B$4)","v":""}]
[{"$f":"IF('START HERE'!$B$4=0,\"\",'START HERE'!$B$4)","v":""}]
[{"$f":"IF('START HERE'!$B$4=0,\"\",'START HERE'!$B$4)","v":""}]
[{"$f":"IF('START HERE'!$B$4=0,\"\",'START HERE'!$B$4)","v":""}]
[{"$f":"IF('START HERE'!$B$4=0,\"\",'START HERE'!$B$4)","v":""}]
[{"$f":"IF('START HERE'!$B$4=0,\"\",'START HERE'!$B$4)","v":""}]
[{"$f":"IF('START HERE'!$B$4=0,\"\",'START HERE'!$B$4)","v":""}]
[{"$f":"IF('START HERE'!$B$4=0,\"\",'START HERE'!$B$4)","v":""}]
[{"$f":"IF('START HERE'!$B$4=0,\"\",'START HERE'!$B$4)","v":""}]
[{"$f":"IF('START HERE'!$B$4=0,\"\",'START HERE'!$B$4)","v":""}]
[{"$f":"IF('START HERE'!$B$4=0,\"\",'START HERE'!$B$4)","v":""}]
[{"$f":"IF('START HERE'!$B$4=0,\"\",'START HERE'!$B$4)","v":""}]
[{"$f":"IF('START HERE'!$B$4=0,\"\",'START HERE'!$B$4)","v":""}]
[{"$f":"IF('START HERE'!$B$4=0,\"\",'START HERE'!$B$4)","v":""}]
[{"$f":"IF('START HERE'!$B$4=0,\"\",'START HERE'!$B$4)","v":""}]
[{"$f":"IF('START HERE'!$B$4=0,\"\",'START HERE'!$B$4)","v":""}]
[{"$f":"IF('START HERE'!$B$4=0,\"\",'START HERE'!$B$4)","v":""}]
[{"$f":"IF('START HERE'!$B$4=0,\"\",'START HERE'!$B$4)","v":""}]
[{"$f":"IF('START HERE'!$B$4=0,\"\",'START HERE'!$B$4)","v":""}]
[{"$f":"IF('START HERE'!$B$4=0,\"\",'START HERE'!$B$4)","v":""}]
[{"$f":"IF('START HERE'!$B$4=0,\"\",'START HERE'!$B$4)","v":""}]
[{"$f":"IF('START HERE'!$B$4=0,\"\",'START HERE'!$B$4)","v":""}]
[{"$f":"IF('START HERE'!$B$4=0,\"\",'START HERE'!$B$4)","v":""}]
[{"$f":"IF('START HERE'!$B$4=0,\"\",'START HERE'!$B$4)","v":""}]
[{"$f":"IF('START HERE'!$B$4=0,\"\",'START HERE'!$B$4)","v":""}]
[{"$f":"IF('START HERE'!$B$4=0,\"\",'START HERE'!$B$4)","v":""}]
[{"$f":"IF('START HERE'!$B$4=0,\"\",'START HERE'!$B$4)","v":""}]
[{"$f":"IF('START HERE'!$B$4=0,\"\",'START HERE'!$B$4)","v":""}]
[{"$f":"IF('START HERE'!$B$4=0,\"\",'START HERE'!$B$4)","v":""}]
[{"$f":"IF('START HERE'!$B$4=0,\"\",'START HERE'!$B$4)","v":""}]
[{"$f":"IF('START HERE'!$B$4=0,\"\",'START HERE'!$B$4)","v":""}]
[{"$f":"IF('START HERE'!$B$4=0,\"\",'START HERE'!$B$4)","v":""}]
[{"$f":"IF('START HERE'!$B$4=0,\"\",'START HERE'!$B$4)","v":""}]
[{"$f":"IF('START HERE'!$B$4=0,\"\",'START HERE'!$B$4)","v":""}]
[{"$f":"IF('START HERE'!$B$4=0,\"\",'START HERE'!$B$4)","v":""}]
[{"$f":"IF('START HERE'!$B$4=0,\"\",'START HERE'!$B$4)","v":""}]
[{"$f":"IF('START HERE'!$B$4=0,\"\",'START HERE'!$B$4)","v":""}]
[{"$f":"IF('START HERE'!$B$4=0,\"\",'START HERE'!$B$4)","v":""}]
[{"$f":"IF('START HERE'!$B$4=0,\"\",'START HERE'!$B$4)","v":""}]
[{"$f":"IF('START HERE'!$B$4=0,\"\",'START HERE'!$B$4)","v":""}]
[{"$f":"IF('START HERE'!$B$4=0,\"\",'START HERE'!$B$4)","v":""}]
[{"$f":"IF('START HERE'!$B$4=0,\"\",'START HERE'!$B$4)","v":""}]
[{"$f":"IF('START HERE'!$B$4=0,\"\",'START HERE'!$B$4)","v":""}]
[{"$f":"IF('START HERE'!$B$4=0,\"\",'START HERE'!$B$4)","v":""}]
[{"$f":"IF('START HERE'!$B$4=0,\"\",'START HERE'!$B$4)","v":""}]
[{"$f":"IF('START HERE'!$B$4=0,\"\",'START HERE'!$B$4)","v":""}]
[{"$f":"IF('START HERE'!$B$4=0,\"\",'START HERE'!$B$4)","v":""}]
[{"$f":"IF('START HERE'!$B$4=0,\"\",'START HERE'!$B$4)","v":""}]
[{"$f":"IF('START HERE'!$B$4=0,\"\",'START HERE'!$B$4)","v":""}]
[{"$f":"IF('START HERE'!$B$4=0,\"\",'START HERE'!$B$4)","v":""}]
[{"$f":"IF('START HERE'!$B$4=0,\"\",'START HERE'!$B$4)","v":""}]
[{"$f":"IF('START HERE'!$B$4=0,\"\",'START HERE'!$B$4)","v":""}]
[{"$f":"IF('START HERE'!$B$4=0,\"\",'START HERE'!$B$4)","v":""}]
[{"$f":"IF('START HERE'!$B$4=0,\"\",'START HERE'!$B$4)","v":""}]
[{"$f":"IF('START HERE'!$B$4=0,\"\",'START HERE'!$B$4)","v":""}]
[{"$f":"IF('START HERE'!$B$4=0,\"\",'START HERE'!$B$4)","v":""}]
[{"$f":"IF('START HERE'!$B$4=0,\"\",'START HERE'!$B$4)","v":""}]
[{"$f":"IF('START HERE'!$B$4=0,\"\",'START HERE'!$B$4)","v":""}]
[{"$f":"IF('START HERE'!$B$4=0,\"\",'START HERE'!$B$4)","v":""}]
[{"$f":"IF('START HERE'!$B$4=0,\"\",'START HERE'!$B$4)","v":""}]
[{"$f":"IF('START HERE'!$B$4=0,\"\",'START HERE'!$B$4)","v":""}]
[{"$f":"IF('START HERE'!$B$4=0,\"\",'START HERE'!$B$4)","v":""}]
[{"$f":"IF('START HERE'!$B$4=0,\"\",'START HERE'!$B$4)","v":""}]
[{"$f":"IF('START HERE'!$B$4=0,\"\",'START HERE'!$B$4)","v":""}]
[{"$f":"IF('START HERE'!$B$4=0,\"\",'START HERE'!$B$4)","v":""}]
[{"$f":"IF('START HERE'!$B$4=0,\"\",'START HERE'!$B$4)","v":""}]
[{"$f":"IF('START HERE'!$B$4=0,\"\",'START HERE'!$B$4)","v":""}]
[{"$f":"IF('START HERE'!$B$4=0,\"\",'START HERE'!$B$4)","v":""}]
[{"$f":"IF('START HERE'!$B$4=0,\"\",'START HERE'!$B$4)","v":""}]
[{"$f":"IF('START HERE'!$B$4=0,\"\",'START HERE'!$B$4)","v":""}]
[{"$f":"IF('START HERE'!$B$4=0,\"\",'START HERE'!$B$4)","v":""}]
[{"$f":"IF('START HERE'!$B$4=0,\"\",'START HERE'!$B$4)","v":""}]
[{"$f":"IF('START HERE'!$B$4=0,\"\",'START HERE'!$B$4)","v":""}]
[{"$f":"IF('START HERE'!$B$4=0,\"\",'START HERE'!$B$4)","v":""}]
[{"$f":"IF('START HERE'!$B$4=0,\"\",'START HERE'!$B$4)","v":""}]
[{"$f":"IF('START HERE'!$B$4=0,\"\",'START HERE'!$B$4)","v":""}]
[{"$f":"IF('START HERE'!$B$4=0,\"\",'START HERE'!$B$4)","v":""}]
[{"$f":"IF('START HERE'!$B$4=0,\"\",'START HERE'!$B$4)","v":""}]
[{"$f":"IF('START HERE'!$B$4=0,\"\",'START HERE'!$B$4)","v":""}]
[{"$f":"IF('START HERE'!$B$4=0,\"\",'START HERE'!$B$4)","v":""}]
[{"$f":"IF('START HERE'!$B$4=0,\"\",'START HERE'!$B$4)","v":""}]
[{"$f":"IF('START HERE'!$B$4=0,\"\",'START HERE'!$B$4)","v":""}]
[{"$f":"IF('START HERE'!$B$4=0,\"\",'START HERE'!$B$4)","v":""}]
[{"$f":"IF('START HERE'!$B$4=0,\"\",'START HERE'!$B$4)","v":""}]
[{"$f":"IF('START HERE'!$B$4=0,\"\",'START HERE'!$B$4)","v":""}]
[{"$f":"IF('START HERE'!$B$4=0,\"\",'START HERE'!$B$4)","v":""}]
[{"$f":"IF('START HERE'!$B$4=0,\"\",'START HERE'!$B$4)","v":""}]
[{"$f":"IF('START HERE'!$B$4=0,\"\",'START HERE'!$B$4)","v":""}]
[{"$f":"IF('START HERE'!$B$4=0,\"\",'START HERE'!$B$4)","v":""}]
[{"$f":"IF('START HERE'!$B$4=0,\"\",'START HERE'!$B$4)","v":""}]
[{"$f":"IF('START HERE'!$B$4=0,\"\",'START HERE'!$B$4)","v":""}]
[{"$f":"IF('START HERE'!$B$4=0,\"\",'START HERE'!$B$4)","v":""}]
[{"$f":"IF('START HERE'!$B$4=0,\"\",'START HERE'!$B$4)","v":""}]
[{"$f":"IF('START HERE'!$B$4=0,\"\",'START HERE'!$B$4)","v":""}]
[{"$f":"IF('START HERE'!$B$4=0,\"\",'START HERE'!$B$4)","v":""}]
[{"$f":"IF('START HERE'!$B$4=0,\"\",'START HERE'!$B$4)","v":""}]
[{"$f":"IF('START HERE'!$B$4=0,\"\",'START HERE'!$B$4)","v":""}]
[{"$f":"IF('START HERE'!$B$4=0,\"\",'START HERE'!$B$4)","v":""}]
[{"$f":"IF('START HERE'!$B$4=0,\"\",'START HERE'!$B$4)","v":""}]
[{"$f":"IF('START HERE'!$B$4=0,\"\",'START HERE'!$B$4)","v":""}]
[{"$f":"IF('START HERE'!$B$4=0,\"\",'START HERE'!$B$4)","v":""}]
[{"$f":"IF('START HERE'!$B$4=0,\"\",'START HERE'!$B$4)","v":""}]
[{"$f":"IF('START HERE'!$B$4=0,\"\",'START HERE'!$B$4)","v":""}]
[{"$f":"IF('START HERE'!$B$4=0,\"\",'START HERE'!$B$4)","v":""}]
[{"$f":"IF('START HERE'!$B$4=0,\"\",'START HERE'!$B$4)","v":""}]
[{"$f":"IF('START HERE'!$B$4=0,\"\",'START HERE'!$B$4)","v":""}]
[{"$f":"IF('START HERE'!$B$4=0,\"\",'START HERE'!$B$4)","v":""}]
[{"$f":"IF('START HERE'!$B$4=0,\"\",'START HERE'!$B$4)","v":""}]
[{"$f":"IF('START HERE'!$B$4=0,\"\",'START HERE'!$B$4)","v":""}]
[{"$f":"IF('START HERE'!$B$4=0,\"\",'START HERE'!$B$4)","v":""}]
[{"$f":"IF('START HERE'!$B$4=0,\"\",'START HERE'!$B$4)","v":""}]
[{"$f":"IF('START HERE'!$B$4=0,\"\",'START HERE'!$B$4)","v":""}]
[{"$f":"IF('START HERE'!$B$4=0,\"\",'START HERE'!$B$4)","v":""}]
[{"$f":"IF('START HERE'!$B$4=0,\"\",'START HERE'!$B$4)","v":""}]
[{"$f":"IF('START HERE'!$B$4=0,\"\",'START HERE'!$B$4)","v":""}]
[{"$f":"IF('START HERE'!$B$4=0,\"\",'START HERE'!$B$4)","v":""}]
[{"$f":"IF('START HERE'!$B$4=0,\"\",'START HERE'!$B$4)","v":""}]
[{"$f":"IF('START HERE'!$B$4=0,\"\",'START HERE'!$B$4)","v":""}]
[{"$f":"IF('START HERE'!$B$4=0,\"\",'START HERE'!$B$4)","v":""}]
[{"$f":"IF('START HERE'!$B$4=0,\"\",'START HERE'!$B$4)","v":""}]
[{"$f":"IF('START HERE'!$B$4=0,\"\",'START HERE'!$B$4)","v":""}]
[{"$f":"IF('START HERE'!$B$4=0,\"\",'START HERE'!$B$4)","v":""}]
[{"$f":"IF('START HERE'!$B$4=0,\"\",'START HERE'!$B$4)","v":""}]
[{"$f":"IF('START HERE'!$B$4=0,\"\",'START HERE'!$B$4)","v":""}]
[{"$f":"IF('START HERE'!$B$4=0,\"\",'START HERE'!$B$4)","v":""}]
[{"$f":"IF('START HERE'!$B$4=0,\"\",'START HERE'!$B$4)","v":""}]
[{"$f":"IF('START HERE'!$B$4=0,\"\",'START HERE'!$B$4)","v":""}]
[{"$f":"IF('START HERE'!$B$4=0,\"\",'START HERE'!$B$4)","v":""}]
[{"$f":"IF('START HERE'!$B$4=0,\"\",'START HERE'!$B$4)","v":""}]
[{"$f":"IF('START HERE'!$B$4=0,\"\",'START HERE'!$B$4)","v":""}]
[{"$f":"IF('START HERE'!$B$4=0,\"\",'START HERE'!$B$4)","v":""}]
[{"$f":"IF('START HERE'!$B$4=0,\"\",'START HERE'!$B$4)","v":""}]
[{"$f":"IF('START HERE'!$B$4=0,\"\",'START HERE'!$B$4)","v":""}]
[{"$f":"IF('START HERE'!$B$4=0,\"\",'START HERE'!$B$4)","v":""}]
[{"$f":"IF('START HERE'!$B$4=0,\"\",'START HERE'!$B$4)","v":""}]
[{"$f":"IF('START HERE'!$B$4=0,\"\",'START HERE'!$B$4)","v":""}]
[{"$f":"IF('START HERE'!$B$4=0,\"\",'START HERE'!$B$4)","v":""}]
[{"$f":"IF('START HERE'!$B$4=0,\"\",'START HERE'!$B$4)","v":""}]
[{"$f":"IF('START HERE'!$B$4=0,\"\",'START HERE'!$B$4)","v":""}]
[{"$f":"IF('START HERE'!$B$4=0,\"\",'START HERE'!$B$4)","v":""}]
[{"$f":"IF('START HERE'!$B$4=0,\"\",'START HERE'!$B$4)","v":""}]
[{"$f":"IF('START HERE'!$B$4=0,\"\",'START HERE'!$B$4)","v":""}]
[{"$f":"IF('START HERE'!$B$4=0,\"\",'START HERE'!$B$4)","v":""}]
[{"$f":"IF('START HERE'!$B$4=0,\"\",'START HERE'!$B$4)","v":""}]
[{"$f":"IF('START HERE'!$B$4=0,\"\",'START HERE'!$B$4)","v":""}]
[{"$f":"IF('START HERE'!$B$4=0,\"\",'START HERE'!$B$4)","v":""}]
[{"$f":"IF('START HERE'!$B$4=0,\"\",'START HERE'!$B$4)","v":""}]
[{"$f":"IF('START HERE'!$B$4=0,\"\",'START HERE'!$B$4)","v":""}]
[{"$f":"IF('START HERE'!$B$4=0,\"\",'START HERE'!$B$4)","v":""}]
[{"$f":"IF('START HERE'!$B$4=0,\"\",'START HERE'!$B$4)","v":""}]
[{"$f":"IF('START HERE'!$B$4=0,\"\",'START HERE'!$B$4)","v":""}]
[{"$f":"IF('START HERE'!$B$4=0,\"\",'START HERE'!$B$4)","v":""}]
[{"$f":"IF('START HERE'!$B$4=0,\"\",'START HERE'!$B$4)","v":""}]
[{"$f":"IF('START HERE'!$B$4=0,\"\",'START HERE'!$B$4)","v":""}]
[{"$f":"IF('START HERE'!$B$4=0,\"\",'START HERE'!$B$4)","v":""}]
[{"$f":"IF('START HERE'!$B$4=0,\"\",'START HERE'!$B$4)","v":""}]
[{"$f":"IF('START HERE'!$B$4=0,\"\",'START HERE'!$B$4)","v":""}]
[{"$f":"IF('START HERE'!$B$4=0,\"\",'START HERE'!$B$4)","v":""}]
[{"$f":"IF('START HERE'!$B$4=0,\"\",'START HERE'!$B$4)","v":""}]
[{"$f":"IF('START HERE'!$B$4=0,\"\",'START HERE'!$B$4)","v":""}]
[{"$f":"IF('START HERE'!$B$4=0,\"\",'START HERE'!$B$4)","v":""}]
[{"$f":"IF('START HERE'!$B$4=0,\"\",'START HERE'!$B$4)","v":""}]
[{"$f":"IF('START HERE'!$B$4=0,\"\",'START HERE'!$B$4)","v":""}]
[{"$f":"IF('START HERE'!$B$4=0,\"\",'START HERE'!$B$4)","v":""}]
[{"$f":"IF('START HERE'!$B$4=0,\"\",'START HERE'!$B$4)","v":""}]
[{"$f":"IF('START HERE'!$B$4=0,\"\",'START HERE'!$B$4)","v":""}]
[{"$f":"IF('START HERE'!$B$4=0,\"\",'START HERE'!$B$4)","v":""}]
[{"$f":"IF('START HERE'!$B$4=0,\"\",'START HERE'!$B$4)","v":""}]
[{"$f":"IF('START HERE'!$B$4=0,\"\",'START HERE'!$B$4)","v":""}]
[{"$f":"IF('START HERE'!$B$4=0,\"\",'START HERE'!$B$4)","v":""}]
[{"$f":"IF('START HERE'!$B$4=0,\"\",'START HERE'!$B$4)","v":""}]
[{"$f":"IF('START HERE'!$B$4=0,\"\",'START HERE'!$B$4)","v":""}]
[{"$f":"IF('START HERE'!$B$4=0,\"\",'START HERE'!$B$4)","v":""}]
[{"$f":"IF('START HERE'!$B$4=0,\"\",'START HERE'!$B$4)","v":""}]
[{"$f":"IF('START HERE'!$B$4=0,\"\",'START HERE'!$B$4)","v":""}]
[{"$f":"IF('START HERE'!$B$4=0,\"\",'START HERE'!$B$4)","v":""}]
[{"$f":"IF('START HERE'!$B$4=0,\"\",'START HERE'!$B$4)","v":""}]
[{"$f":"IF('START HERE'!$B$4=0,\"\",'START HERE'!$B$4)","v":""}]
[{"$f":"IF('START HERE'!$B$4=0,\"\",'START HERE'!$B$4)","v":""}]
[{"$f":"IF('START HERE'!$B$4=0,\"\",'START HERE'!$B$4)","v":""}]
[{"$f":"IF('START HERE'!$B$4=0,\"\",'START HERE'!$B$4)","v":""}]
[{"$f":"IF('START HERE'!$B$4=0,\"\",'START HERE'!$B$4)","v":""}]
[{"$f":"IF('START HERE'!$B$4=0,\"\",'START HERE'!$B$4)","v":""}]
[{"$f":"IF('START HERE'!$B$4=0,\"\",'START HERE'!$B$4)","v":""}]
[{"$f":"IF('START HERE'!$B$4=0,\"\",'START HERE'!$B$4)","v":""}]
[{"$f":"IF('START HERE'!$B$4=0,\"\",'START HERE'!$B$4)","v":""}]
[{"$f":"IF('START HERE'!$B$4=0,\"\",'START HERE'!$B$4)","v":""}]
[{"$f":"IF('START HERE'!$B$4=0,\"\",'START HERE'!$B$4)","v":""}]
[{"$f":"IF('START HERE'!$B$4=0,\"\",'START HERE'!$B$4)","v":""}]
[{"$f":"IF('START HERE'!$B$4=0,\"\",'START HERE'!$B$4)","v":""}]
[{"$f":"IF('START HERE'!$B$4=0,\"\",'START HERE'!$B$4)","v":""}]
[{"$f":"IF('START HERE'!$B$4=0,\"\",'START HERE'!$B$4)","v":""}]
[{"$f":"IF('START HERE'!$B$4=0,\"\",'START HERE'!$B$4)","v":""}]
[{"$f":"IF('START HERE'!$B$4=0,\"\",'START HERE'!$B$4)","v":""}]
[{"$f":"IF('START HERE'!$B$4=0,\"\",'START HERE'!$B$4)","v":""}]
[{"$f":"IF('START HERE'!$B$4=0,\"\",'START HERE'!$B$4)","v":""}]
[{"$f":"IF('START HERE'!$B$4=0,\"\",'START HERE'!$B$4)","v":""}]
[{"$f":"IF('START HERE'!$B$4=0,\"\",'START HERE'!$B$4)","v":""}]
[{"$f":"IF('START HERE'!$B$4=0,\"\",'START HERE'!$B$4)","v":""}]
[{"$f":"IF('START HERE'!$B$4=0,\"\",'START HERE'!$B$4)","v":""}]
[{"$f":"IF('START HERE'!$B$4=0,\"\",'START HERE'!$B$4)","v":""}]

{"sheet":"Table C","index":3,"n_rows":2,"n_cols":2,"rows_kept":2,"cut":false,"hidden":false,"merged":[]}
["Table C: Land Use, Table Starts in A2"]
["Zoning Designation\n(From Table A, Column G)","General Land Uses Allowed"]

{"sheet":"DropdownLists","index":4,"n_rows":539,"n_cols":11,"rows_kept":539,"cut":false,"hidden":true,"merged":[]}
["ADELANTO","A","YES","NO - Not Eligible","Available","NO - Privately-Owned","4th","Used in Prior Housing Element - Non-Vacant",null,"Vacant","YES - Current"]
["AGOURA HILLS","B","NO","YES - Infill Cat. Ex. (CEQA Guidelines § 15332)","Pending Project","YES - City-Owned","5th","Used in Two Consecutive Prior Housing Elements - Vacant","Unaccommodated Need","Non-Vacant","YES - Planned"]
["ALAMEDA","C",null,"YES -  Infill Housing Exemption (Public Resources Code (PRC) § 21159.24)",null,"YES - County-Owned","6th","Not Used in Prior Housing Element","Shortfall of Sites",null,"YES - Potential"]
["ALAMEDA COUNTY","D",null,"YES – Infill Housing in Unincorporated Areas (PRC § 21159.25)",null,"YES - Special District-Owned","7th",null,"Both",null,"NO"]
["ALBANY","E",null,"YES – Transit Priority Area Covered by a Specific Plan (PRC § 21155.4)",null,"YES - State-Owned","8th"]
["ALHAMBRA","F",null,"YES – Planning Document Consistency (PRC) § 21083.3)",null,"YES - Federally-Owned","9th"]
["ALISO VIEJO","G",null,"YES - Other",null,"YES - Other Publicly-Owned"]
["ALPINE COUNTY","H"]
["ALTURAS","I"]
["AMADOR CITY","J"]
["AMADOR COUNTY","K"]
["AMERICAN CANYON","L"]
["ANAHEIM","M"]
["ANDERSON","N"]
["ANGELS CAMP","O"]
["ANTIOCH","P"]
["APPLE VALLEY","Q"]
["ARCADIA","R"]
["ARCATA","S"]
["ARROYO GRANDE","T"]
["ARTESIA","U"]
["ARVIN","V"]
["ATASCADERO","W"]
["ATHERTON","X"]
["ATWATER","Y"]
["AUBURN","Z"]
["AVALON","AA"]
["AVENAL","AB"]
["AZUSA","AC"]
["BAKERSFIELD","AD"]
["BALDWIN PARK","AE"]
["BANNING","AF"]
["BARSTOW","AG"]
["BEAUMONT","AH"]
["BELL","AI"]
["BELL GARDENS","AJ"]
["BELLFLOWER","AK"]
["BELMONT","AL"]
["BELVEDERE","AM"]
["BENICIA","AN"]
["BERKELEY","AO"]
["BEVERLY HILLS","AP"]
["BIG BEAR LAKE","AQ"]
["BIGGS","AR"]
["BISHOP","AS"]
["BLUE LAKE","AT"]
["BLYTHE","AU"]
["BRADBURY","AV"]
["BRAWLEY","AW"]
["BREA","AX"]
["BRENTWOOD","AY"]
["BRISBANE","AZ"]
["BUELLTON"]
["BUENA PARK"]
["BURBANK"]
["BURLINGAME"]
["BUTTE COUNTY"]
["CALABASAS"]
["CALAVERAS COUNTY"]
["CALEXICO"]
["CALIFORNIA CITY"]
["CALIMESA"]
["CALIPATRIA"]
["CALISTOGA"]
["CAMARILLO"]
["CAMPBELL"]
["CANYON LAKE"]
["CAPITOLA"]
["CARLSBAD"]
["CARMEL"]
["CARPINTERIA"]
["CARSON"]
["CATHEDRAL"]
["CERES"]
["CERRITOS"]
["CHICO"]
["CHINO"]
["CHINO HILLS"]
["CHOWCHILLA"]
["CHULA VISTA"]
["CITRUS HEIGHTS"]
["CLAREMONT"]
["CLAYTON"]
["CLEARLAKE"]
["CLOVERDALE"]
["CLOVIS"]
["COACHELLA"]
["COALINGA"]
["COLFAX"]
["COLMA"]
["COLTON"]
["COLUSA"]
["COLUSA COUNTY"]
["COMMERCE"]
["COMPTON"]
["CONCORD"]
["CONTRA COSTA COUNTY"]
["CORCORAN"]
["CORNING"]
["CORONA"]
["CORONADO"]
["CORTE MADERA"]
["COSTA MESA"]
["COTATI"]
["COVINA"]
["CRESCENT CITY"]
["CUDAHY"]
["CULVER CITY"]
["CUPERTINO"]
["CYPRESS"]
["DALY CITY"]
["DANA POINT"]
["DANVILLE"]
["DAVIS"]
["DEL MAR"]
["DEL NORTE COUNTY"]
["DEL REY OAKS"]
["DELANO"]
["DESERT HOT SPRINGS"]
["DIAMOND BAR"]
["DINUBA"]
["DIXON"]
["DORRIS"]
["DOS PALOS"]
["DOWNEY"]
["DUARTE"]
["DUBLIN"]
["DUNSMUIR"]
["EAST PALO ALTO"]
["EASTVALE"]
["EL CAJON"]
["EL CENTRO"]
["EL CERRITO"]
["EL DORADO COUNTY"]
["EL MONTE"]
["EL SEGUNDO"]
["ELK GROVE"]
["EMERYVILLE"]
["ENCINITAS"]
["ESCALON"]
["ESCONDIDO"]
["ETNA"]
["EUREKA"]
["EXETER"]
["FAIRFAX"]
["FAIRFIELD"]
["FARMERSVILLE"]
["FERNDALE"]
["FILLMORE"]
["FIREBAUGH"]
["FOLSOM"]
["FONTANA"]
["FORT BRAGG"]
["FORT JONES"]
["FORTUNA"]
["FOSTER CITY"]
["FOUNTAIN VALLEY"]
["FOWLER"]
["FREMONT"]
["FRESNO"]
["FRESNO COUNTY"]
["FULLERTON"]
["GALT"]
["GARDEN GROVE"]
["GARDENA"]
["GILROY"]
["GLENDALE"]
["GLENDORA"]
["GLENN COUNTY"]
["GOLETA"]
["GONZALES"]
["GRAND TERRACE"]
["GRASS VALLEY"]
["GREENFIELD"]
["GRIDLEY"]
["GROVER BEACH"]
["GUADALUPE"]
["GUSTINE"]
["HALF MOON BAY"]
["HANFORD"]
["HAWAIIAN GARDENS"]
["HAWTHORNE"]
["HAYWARD"]
["HEALDSBURG"]
["HEMET"]
["HERCULES"]
["HERMOSA BEACH"]
["HESPERIA"]
["HIDDEN HILLS"]
["HIGHLAND"]
["HILLSBOROUGH"]
["HOLLISTER"]
["HOLTVILLE"]
["HUGHSON"]
["HUMBOLDT COUNTY"]
["HUNTINGTON BEACH"]
["HUNTINGTON PARK"]
["HURON"]
["IMPERIAL"]
["IMPERIAL BEACH"]
["IMPERIAL COUNTY"]
["INDIAN WELLS"]
["INDIO"]
["INDUSTRY"]
["INGLEWOOD"]
["INYO COUNTY"]
["IONE"]
["IRVINE"]
["IRWINDALE"]
["ISLETON"]
["JACKSON"]
["JURUPA VALLEY"]
["KERMAN"]
["KERN COUNTY"]
["KING CITY"]
["KINGS COUNTY"]
["KINGSBURG"]
["LA CANADA FLINTRIDGE"]
["LA HABRA"]
["LA HABRA HEIGHTS"]
["LA MESA"]
["LA MIRADA"]
["LA PALMA"]
["LA PUENTE"]
["LA QUINTA"]
["LA VERNE"]
["LAFAYETTE"]
["LAGUNA BEACH"]
["LAGUNA HILLS"]
["LAGUNA NIGUEL"]
["LAGUNA WOODS"]
["LAKE COUNTY"]
["LAKE ELSINORE"]
["LAKE FOREST"]
["LAKEPORT"]
["LAKEWOOD"]
["LANCASTER"]
["LARKSPUR"]
["LASSEN COUNTY"]
["LATHROP"]
["LAWNDALE"]
["LEMON GROVE"]
["LEMOORE"]
["LINCOLN"]
["LINDSAY"]
["LIVE OAK"]
["LIVERMORE"]
["LIVINGSTON"]
["LODI"]
["LOMA LINDA"]
["LOMITA"]
["LOMPOC"]
["LONG BEACH"]
["LOOMIS"]
["LOS ALAMITOS"]
["LOS ALTOS"]
["LOS ALTOS HILLS"]
["LOS ANGELES"]
["LOS ANGELES COUNTY"]
["LOS BANOS"]
["LOS GATOS"]
["LOYALTON"]
["LYNWOOD"]
["MADERA"]
["MADERA COUNTY"]
["MALIBU"]
["MAMMOTH LAKES"]
["MANHATTAN BEACH"]
["MANTECA"]
["MARICOPA"]
["MARIN COUNTY"]
["MARINA"]
["MARIPOSA COUNTY"]
["MARTINEZ"]
["MARYSVILLE"]
["MAYWOOD"]
["MCFARLAND"]
["MENDOCINO COUNTY"]
["MENDOTA"]
["MENIFEE"]
["MENLO PARK"]
["MERCED"]
["MERCED COUNTY"]
["MILL VALLEY"]
["MILLBRAE"]
["MILPITAS"]
["MISSION VIEJO"]
["MODESTO"]
["MODOC COUNTY"]
["MONO COUNTY"]
["MONROVIA"]
["MONTAGUE"]
["MONTCLAIR"]
["MONTE SERENO"]
["MONTEBELLO"]
["MONTEREY"]
["MONTEREY COUNTY"]
["MONTEREY PARK"]
["MOORPARK"]
["MORAGA"]
["MORENO VALLEY"]
["MORGAN HILL"]
["MORRO BAY"]
["MOUNT SHASTA"]
["MOUNTAIN VIEW"]
["MURRIETA"]
["NAPA"]
["NAPA COUNTY"]
["NATIONAL CITY"]
["NEEDLES"]
["NEVADA CITY"]
["NEVADA COUNTY"]
["NEWARK"]
["NEWMAN"]
["NEWPORT BEACH"]
["NORCO"]
["NORWALK"]
["NOVATO"]
["OAKDALE"]
["OAKLAND"]
["OAKLEY"]
["OCEANSIDE"]
["OJAI"]
["ONTARIO"]
["ORANGE"]
["ORANGE COUNTY"]
["ORANGE COVE"]
["ORINDA"]
["ORLAND"]
["OROVILLE"]
["OXNARD"]
["PACIFIC GROVE"]
["PACIFICA"]
["PALM DESERT"]
["PALM SPRINGS"]
["PALMDALE"]
["PALO ALTO"]
["PALOS VERDES ESTATES"]
["PARADISE"]
["PARAMOUNT"]
["PARLIER"]
["PASADENA"]
["PASO ROBLES"]
["PATTERSON"]
["PERRIS"]
["PETALUMA"]
["PICO RIVERA"]
["PIEDMONT"]
["PINOLE"]
["PISMO BEACH"]
["PITTSBURG"]
["PLACENTIA"]
["PLACER COUNTY"]
["PLACERVILLE"]
["PLEASANT HILL"]
["PLEASANTON"]
["PLUMAS COUNTY"]
["PLYMOUTH"]
["POINT ARENA"]
["POMONA"]
["PORT HUENEME"]
["PORTERVILLE"]
["PORTOLA"]
["PORTOLA VALLEY"]
["POWAY"]
["RANCHO CORDOVA"]
["RANCHO CUCAMONGA"]
["RANCHO MIRAGE"]
["RANCHO PALOS VERDES"]
["RANCHO ST. MARGARITA"]
["RED BLUFF"]
["REDDING"]
["REDLANDS"]
["REDONDO BEACH"]
["REDWOOD CITY"]
["REEDLEY"]
["RIALTO"]
["RICHMOND"]
["RIDGECREST"]
["RIO DELL"]
["RIO VISTA"]
["RIPON"]
["RIVERBANK"]
["RIVERSIDE"]
["RIVERSIDE COUNTY"]
["ROCKLIN"]
["ROHNERT PARK"]
["ROLLING HILLS"]
["ROLLING HILLS ESTATES"]
["ROSEMEAD"]
["ROSEVILLE"]
["ROSS"]
["SACRAMENTO"]
["SACRAMENTO COUNTY"]
["SAINT HELENA"]
["SALINAS"]
["SAN ANSELMO"]
["SAN BENITO COUNTY"]
["SAN BERNARDINO"]
["SAN BERNARDINO COUNTY"]
["SAN BRUNO"]
["SAN BUENAVENTURA"]
["SAN CARLOS"]
["SAN CLEMENTE"]
["SAN DIEGO"]
["SAN DIEGO COUNTY"]
["SAN DIMAS"]
["SAN FERNANDO"]
["SAN FRANCISCO"]
["SAN GABRIEL"]
["SAN JACINTO"]
["SAN JOAQUIN"]
["SAN JOAQUIN COUNTY"]
["SAN JOSE"]
["SAN JUAN BAUTISTA"]
["SAN JUAN CAPISTRANO"]
["SAN LEANDRO"]
["SAN LUIS OBISPO"]
["SAN LUIS OBISPO COUNTY"]
["SAN MARCOS"]
["SAN MARINO"]
["SAN MATEO"]
["SAN MATEO COUNTY"]
["SAN PABLO"]
["SAN RAFAEL"]
["SAN RAMON"]
["SAND CITY"]
["SANGER"]
["SANTA ANA"]
["SANTA BARBARA"]
["SANTA BARBARA COUNTY"]
["SANTA CLARA"]
["SANTA CLARA COUNTY"]
["SANTA CLARITA"]
["SANTA CRUZ"]
["SANTA CRUZ COUNTY"]
["SANTA FE SPRINGS"]
["SANTA MARIA"]
["SANTA MONICA"]
["SANTA PAULA"]
["SANTA ROSA"]
["SANTEE"]
["SARATOGA"]
["SAUSALITO"]
["SCOTTS VALLEY"]
["SEAL BEACH"]
["SEASIDE"]
["SEBASTOPOL"]
["SELMA"]
["SHAFTER"]
["SHASTA COUNTY"]
["SHASTA LAKE"]
["SIERRA COUNTY"]
["SIERRA MADRE"]
["SIGNAL HILL"]
["SIMI VALLEY"]
["SISKIYOU COUNTY"]
["SOLANA BEACH"]
["SOLANO COUNTY"]
["SOLEDAD"]
["SOLVANG"]
["SONOMA"]
["SONOMA COUNTY"]
["SONORA"]
["SOUTH EL MONTE"]
["SOUTH GATE"]
["SOUTH LAKE TAHOE"]
["SOUTH PASADENA"]
["SOUTH SAN FRANCISCO"]
["STANISLAUS COUNTY"]
["STANTON"]
["STOCKTON"]
["SUISUN CITY"]
["SUNNYVALE"]
["SUSANVILLE"]
["SUTTER COUNTY"]
["SUTTER CREEK"]
["TAFT"]
["TEHACHAPI"]
["TEHAMA"]
["TEHAMA COUNTY"]
["TEMECULA"]
["TEMPLE CITY"]
["THOUSAND OAKS"]
["TIBURON"]
["TORRANCE"]
["TRACY"]
["TRINIDAD"]
["TRINITY COUNTY"]
["TRUCKEE"]
["TULARE"]
["TULARE COUNTY"]
["TULELAKE"]
["TUOLUMNE COUNTY"]
["TURLOCK"]
["TUSTIN"]
["TWENTYNINE PALMS"]
["UKIAH"]
["UNION CITY"]
["UPLAND"]
["VACAVILLE"]
["VALLEJO"]
["VENTURA COUNTY"]
["VERNON"]
["VICTORVILLE"]
["VILLA PARK"]
["VISALIA"]
["VISTA"]
["WALNUT"]
["WALNUT CREEK"]
["WASCO"]
["WATERFORD"]
["WATSONVILLE"]
["WEED"]
["WEST COVINA"]
["WEST HOLLYWOOD"]
["WEST SACRAMENTO"]
["WESTLAKE VILLAGE"]
["WESTMINSTER"]
["WESTMORLAND"]
["WHEATLAND"]
["WHITTIER"]
["WILDOMAR"]
["WILLIAMS"]
["WILLITS"]
["WILLOWS"]
["WINDSOR"]
["WINTERS"]
["WOODLAKE"]
["WOODLAND"]
["WOODSIDE"]
["YOLO COUNTY"]
["YORBA LINDA"]
["YOUNTVILLE"]
["YREKA"]
["YUBA CITY"]
["YUBA COUNTY"]
["YUCAIPA"]
["YUCCA VALLEY"]